Workbook

Sheet UserInput
B2: Material/Design Characteristics | E2: Freq | F2: Dk | G2: Df
B3: Length (inch) | C3: 40 | E3: 100000000 | F3: 3.6 | G3: 0.0092
B4: Trace Width (mil) | C4: 8 | E4: 1000000000 | F4: 3.6 | G4: 0.0092
B5: Cu Thickness (mil) | C5: 0.67 | E5: 2000000000 | F5: 3.5 | G5: 0.0115
B6: Diel. Thickness (mil) | C6: 17 | E6: 5000000000 | F6: 3.5 | G6: 0.0115 | H6: Loss at 6GHz: | J6: =CONCATENATE(ROUND(J41,2)," dB") -> 20.88 dB
E7: 10000000000 | F7: 3.4 | G7: 0.0125 | H7: Loss at 12.5GHz: | J7: =CONCATENATE(ROUND(J67,2)," dB") -> 40.54 dB
E8: 20000000000 | F8: 3.2 | G8: 0.014 | H8: Loss at 14GHz: | J8: =CONCATENATE(ROUND(J73,2)," dB") -> 44.98 dB
C9: DK fit to Second Order Equation | D9: c2 | E9: =INDEX(LINEST(F3:F8,E3:E8^{1,2}),1) -> 3.647739517e-23 | F9: Df fit to Second Order Equation | G9: c2 | H9: =INDEX(LINEST(G3:G8,E3:E8^{1,2}),1) -> -1.152090891e-23
B10: Version 1.01 | D10: c1 | E10: =INDEX(LINEST(F3:F8,E3:E8^{1,2}),1,2) -> -2.023923483e-11 | G10: c1 | H10: =INDEX(LINEST(G3:G8,E3:E8^{1,2}),1,2) -> 4.544394446e-13
D11: b | E11: =INDEX(LINEST(F3:F8,E3:E8^{1,2}),1,3) -> 3.591963577 | G11: b | H11: =INDEX(LINEST(G3:G8,E3:E8^{1,2}),1,3) -> 0.009448675682
B12: Frequency (GHz) | C12: Zo | E12: Dk | F12: Df | G12: αcond | H12: αdiel | I12: αtotal | J12: Atotal
B13: 0.01 | C13: =94.15/( SQRT($E13)*( (($C$4/$C$6)/(1-$C$5/$C$6)) + ((((2/(1-$C$5/$C$6))*LN((1/(1-$C$5/$C$6))+1))-(((1/(1-$C$5/$C$6))-1)*LN((1/((1-$C$5/$C$6)^2))-1)))/PI() ) ) ) -> 49.92196107 | E13: =$E$9*(B13*10^9)^2 + $E$10*(B13*10^9) + $E$11 -> 3.591761188 | F13: =$H$9*(B13*10^9)^2 + $H$10*(B13*10^9) + $H$11 -> 0.009453218925 | G13: =(20*LOG(EXP(1))/2) * (SQRT(PI() * (4*PI()*10^-7*0.999994) / 56900000) / ($C$4*0.001)) * SQRT($B13*10^9) * (1/$C13) -> 0.009057849895 | H13: =( (20*LOG(EXP(1))/2) * 2*PI()*$B13*10^9 * $F13 *SQRT($E13) ) / (299792458*39.3700787 ) -> 0.0004142005165 | I13: =G13+H13 -> 0.009472050411 | J13: =I13*$C$3 -> 0.3788820164
B14: 0.05 | C14: 49.92758752 | E14: =$E$9*(B14*10^9)^2 + $E$10*(B14*10^9) + $E$11 -> 3.590951707 | F14: =$H$9*(B14*10^9)^2 + $H$10*(B14*10^9) + $H$11 -> 0.009471368852 | G14: =(20*LOG(EXP(1))/2) * (SQRT(PI() * (4*PI()*10^-7) / 56900000) / ($C$4*0.001)) * SQRT($B14*10^9) * (1/$C14) -> 0.02025174638 | H14: =( (20*LOG(EXP(1))/2) * 2*PI()*$B14*10^9 * $F14 *SQRT($E14) ) / (299792458*39.3700787 ) -> 0.002074745018 | I14: =G14+H14 -> 0.0223264914 | J14: 0.8930596561
B15: 0.1 | C15: 49.93462212 | E15: 3.589940018 | F15: 0.009494004418 | G15: 0.02863625966 | H15: 0.004158820915 | I15: 0.03279508058 | J15: 1.311803223
B16: 0.15 | C16: 49.94165843 | E16: 3.588928513 | F16: 0.009516582378 | G16: 0.03506717083 | H16: 0.00625218569 | I16: 0.04131935652 | J16: 1.652774261
B17: 0.2 | C17: 49.94869644 | E17: 3.587917189 | F17: 0.009539102735 | G17: 0.0404863755 | H17: 0.008354797362 | I17: 0.04884117287 | J17: 1.953646915
B18: 0.25 | C18: 49.95573616 | E18: 3.586906048 | F18: 0.009561565487 | G18: 0.04525876517 | H18: 0.01046661397 | I18: 0.05572537915 | J18: 2.229015166
B19: 0.5 | C19: 49.99096036 | E19: 3.581853079 | F19: 0.009673015177 | G19: 0.06396046047 | H19: 0.02116230412 | I19: 0.08512276459 | J19: 3.404910584
B20: 0.75 | C20: 50.02622729 | E20: 3.57680467 | F20: 0.009783024754 | G20: 0.07828002203 | H20: 0.03208183653 | I20: 0.1103618586 | J20: 4.414474342
B21: 1 | C21: 50.06153701 | E21: 3.57176082 | F21: 0.009891594218 | G21: 0.09032622914 | H21: 0.04321999082 | I21: 0.13354622 | J21: 5.341848799
B22: 1.25 | C22: 50.09688959 | E22: 3.56672153 | F22: 0.009998723568 | G22: 0.1009165288 | H22: 0.05457156017 | I22: 0.155488089 | J22: 6.219523558
B23: 1.5 | C23: 50.13228507 | E23: 3.561686799 | F23: 0.0101044128 | G23: 0.1104704666 | H23: 0.06613135125 | I23: 0.1766018179 | J23: 7.064072715
B24: 1.75 | C24: 50.16772353 | E24: 3.556656628 | F24: 0.01020866193 | G24: 0.1192374527 | H24: 0.0778941843 | I24: 0.197131637 | J24: 7.885265479
B25: 2 | C25: 50.20320502 | E25: 3.551631017 | F25: 0.01031147094 | G25: 0.1273801082 | H25: 0.08985489303 | I25: 0.2172350012 | J25: 8.689400049
B26: 2.25 | C26: 50.23872961 | E26: 3.546609966 | F26: 0.01041283983 | G26: 0.1350114712 | H26: 0.1020083247 | I26: 0.2370197959 | J26: 9.480791835
B27: 2.5 | C27: 50.27429736 | E27: 3.541593474 | F27: 0.01051276861 | G27: 0.1422139026 | H27: 0.11434934 | I27: 0.2565632426 | J27: 10.2625297
B28: 2.75 | C28: 50.30990832 | E28: 3.536581542 | F28: 0.01061125728 | G28: 0.1490496225 | H28: 0.1268728133 | I28: 0.2759224358 | J28: 11.03689743
B29: 3 | C29: 50.34556257 | E29: 3.531574169 | F29: 0.01070830584 | G29: 0.1555670043 | H29: 0.1395736323 | I29: 0.2951406366 | J29: 11.80562546
B30: 3.25 | C30: 50.38126015 | E30: 3.526571356 | F30: 0.01080391428 | G30: 0.161804544 | H30: 0.1524466981 | I30: 0.3142512421 | J30: 12.57004969
B31: 3.5 | C31: 50.41700114 | E31: 3.521573103 | F31: 0.0108980826 | G31: 0.1677934764 | H31: 0.1654869256 | I31: 0.3332804019 | J31: 13.33121608
B32: 3.75 | C32: 50.45278559 | E32: 3.51657941 | F32: 0.01099081082 | G32: 0.1735595614 | H32: 0.1786892428 | I32: 0.3522488042 | J32: 14.08995217
B33: 4 | C33: 50.48861357 | E33: 3.511590276 | F33: 0.01108209892 | G33: 0.1791243429 | H33: 0.1920485915 | I33: 0.3711729343 | J33: 14.84691737
B34: 4.25 | C34: 50.52448513 | E34: 3.506605702 | F34: 0.0111719469 | G34: 0.184506057 | H34: 0.2055599267 | I34: 0.3900659838 | J34: 15.60263935
B35: 4.5 | C35: 50.56040035 | E35: 3.501625688 | F35: 0.01126035478 | G35: 0.1897203042 | H35: 0.2192182171 | I35: 0.4089385213 | J35: 16.35754085
B36: 4.75 | C36: 50.59635927 | E36: 3.496650233 | F36: 0.01134732254 | G36: 0.1947805539 | H36: 0.2330184446 | I36: 0.4277989985 | J36: 17.11195994
B37: 5 | C37: 50.63236197 | E37: 3.491679338 | F37: 0.01143285018 | G37: 0.1996985329 | H37: 0.2469556048 | I37: 0.4466541376 | J37: 17.8661655
B38: 5.25 | C38: 50.6684085 | E38: 3.486713002 | F38: 0.01151693771 | G38: 0.2044845254 | H38: 0.2610247064 | I38: 0.4655092318 | J38: 18.62036927
B39: 5.5 | C39: 50.70449892 | E39: 3.481751227 | F39: 0.01159958513 | G39: 0.2091476114 | H39: 0.2752207719 | I39: 0.4843683833 | J39: 19.37473533
B40: 5.75 | C40: 50.74063331 | E40: 3.476794011 | F40: 0.01168079244 | G40: 0.213695855 | H40: 0.289538837 | I40: 0.503234692 | J40: 20.12938768
B41: 6 | C41: 50.77681171 | E41: 3.471841354 | F41: 0.01176055963 | G41: 0.2181364579 | H41: 0.303973951 | I41: 0.5221104088 | J41: 20.88441635
B42: 6.25 | C42: 50.8130342 | E42: 3.466893258 | F42: 0.01183888671 | G42: 0.2224758831 | H42: 0.3185211763 | I42: 0.5409970594 | J42: 21.63988238
B43: 6.5 | C43: 50.84930083 | E43: 3.461949721 | F43: 0.01191577367 | G43: 0.2267199578 | H43: 0.333175589 | I43: 0.5598955467 | J43: 22.39582187
B44: 6.75 | C44: 50.88561167 | E44: 3.457010743 | F44: 0.01199122052 | G44: 0.2308739571 | H44: 0.3479322784 | I44: 0.5788062355 | J44: 23.15224942
B45: 7 | C45: =94.15/( SQRT($E45)*( (($C$4/$C$6)/(1-$C$5/$C$6)) + ((((2/(1-$C$5/$C$6))*LN((1/(1-$C$5/$C$6))+1))-(((1/(1-$C$5/$C$6))-1)*LN((1/((1-$C$5/$C$6)^2))-1)))/PI() ) ) ) -> 50.92196677 | E45: 3.452076326 | F45: 0.01206522726 | G45: 0.2349426756 | H45: 0.3627863474 | I45: 0.597729023 | J45: =I45*$C$3 -> 23.90916092
B46: 7.25 | C46: 50.95836621 | E46: 3.447146468 | F46: 0.01213779388 | G46: =(20*LOG(EXP(1))/2) * (SQRT(PI() * (4*PI()*10^-7) / 56900000) / ($C$4*0.001)) * SQRT($B46*10^9) * (1/$C46) -> 0.2389304864 | H46: 0.3777329122 | I46: 0.6166633986 | J46: 24.66653595
B47: 7.5 | C47: 50.99481004 | E47: 3.442221169 | F47: 0.01220892039 | G47: 0.2428413916 | H47: 0.3927671023 | I47: 0.6356084938 | J47: 25.42433975
B48: 7.75 | C48: 51.03129832 | E48: 3.437300431 | F48: 0.01227860679 | G48: 0.2466790647 | H48: 0.4078840606 | I48: 0.6545631253 | J48: 26.18252501
B49: 8 | C49: 51.06783112 | E49: 3.432384252 | F49: 0.01234685307 | G49: 0.2504468879 | H49: 0.4230789434 | I49: 0.6735258313 | J49: 26.94103325
B50: 8.25 | C50: 51.1044085 | E50: 3.427472632 | F50: 0.01241365924 | G50: 0.2541479832 | H50: 0.4383469204 | I50: 0.6924949036 | J50: 27.69979615
B51: 8.5 | C51: 51.14103053 | E51: 3.422565573 | F51: 0.01247902529 | G51: 0.2577852399 | H51: 0.4536831746 | I51: 0.7114684145 | J51: 28.45873658
B52: 8.75 | C52: 51.17769726 | E52: 3.417663073 | F52: 0.01254295123 | G52: 0.2613613382 | H52: 0.4690829023 | I52: 0.7304442405 | J52: 29.21776962
B53: 9 | C53: 51.21440875 | E53: 3.412765133 | F53: 0.01260543706 | G53: 0.2648787699 | H53: 0.4845413133 | I53: 0.7494200832 | J53: 29.97680333
B54: 9.25 | C54: 51.25116508 | E54: 3.407871752 | F54: 0.01266648278 | G54: 0.2683398566 | H54: 0.5000536306 | I54: 0.7683934871 | J54: 30.73573949
B55: 9.5 | C55: 51.2879663 | E55: 3.402982931 | F55: 0.01272608838 | G55: 0.2717467655 | H55: 0.5156150905 | I55: 0.787361856 | J55: 31.49447424
B56: 9.75 | C56: 51.32481247 | E56: 3.39809867 | F56: 0.01278425386 | G56: 0.2751015239 | H56: 0.5312209427 | I56: 0.8063224665 | J56: 32.25289866
B57: 10 | C57: 51.36170367 | E57: 3.393218968 | F57: 0.01284097924 | G57: 0.2784060308 | H57: 0.5468664502 | I57: 0.825272481 | J57: 33.01089924
B58: 10.25 | C58: 51.39863994 | E58: 3.388343826 | F58: 0.0128962645 | G58: 0.2816620688 | H58: 0.5625468893 | I58: 0.8442089581 | J58: 33.76835833
B59: 10.5 | C59: 51.43562136 | E59: 3.383473244 | F59: 0.01295010964 | G59: 0.2848713137 | H59: 0.5782575496 | I59: 0.8631288633 | J59: 34.52515453
B60: 10.75 | C60: 51.47264798 | E60: 3.378607222 | F60: 0.01300251468 | G60: 0.2880353431 | H60: 0.593993734 | I60: 0.8820290771 | J60: 35.28116308
B61: 11 | C61: 51.50971988 | E61: 3.373745759 | F61: 0.01305347959 | G61: 0.2911556445 | H61: 0.6097507587 | I61: 0.9009064032 | J61: 36.03625613
B62: 11.25 | C62: 51.5468371 | E62: 3.368888856 | F62: 0.0131030044 | G62: 0.2942336223 | H62: 0.6255239531 | I62: 0.9197575754 | J62: 36.79030302
B63: 11.5 | C63: 51.58399972 | E63: 3.364036512 | F63: 0.01315108909 | G63: 0.2972706044 | H63: 0.6413086599 | I63: 0.9385792643 | J63: 37.54317057
B64: 11.75 | C64: 51.6212078 | E64: 3.359188728 | F64: 0.01319773367 | G64: 0.3002678478 | H64: 0.6571002352 | I64: 0.9573680829 | J64: 38.29472332
B65: 12 | C65: 51.65846141 | E65: 3.354345504 | F65: 0.01324293813 | G65: 0.3032265436 | H65: 0.6728940481 | I65: 0.9761205917 | J65: 39.04482367
B66: 12.25 | C66: 51.69576059 | E66: 3.34950684 | F66: 0.01328670248 | G66: 0.3061478222 | H66: 0.6886854813 | I66: 0.9948333035 | J66: 39.79333214
B67: 12.5 | C67: 51.73310543 | E67: 3.344672735 | F67: 0.01332902672 | G67: 0.3090327574 | H67: 0.7044699304 | I67: 1.013502688 | J67: 40.54010751
B68: 12.75 | C68: 51.77049597 | E68: 3.33984319 | F68: 0.01336991085 | G68: 0.3118823703 | H68: 0.7202428043 | I68: 1.032125175 | J68: 41.28500699
B69: 13 | C69: 51.80793229 | E69: 3.335018204 | F69: 0.01340935486 | G69: 0.3146976328 | H69: 0.7359995255 | I69: 1.050697158 | J69: 42.02788633
B70: 13.25 | C70: 51.84541444 | E70: 3.330197778 | F70: 0.01344735875 | G70: 0.3174794711 | H70: 0.7517355291 | I70: 1.069215 | J70: 42.76860001
B71: 13.5 | C71: 51.8829425 | E71: 3.325381912 | F71: 0.01348392254 | G71: 0.3202287683 | H71: 0.767446264 | I71: 1.087675032 | J71: 43.50700129
B72: 13.75 | C72: 51.92051652 | E72: 3.320570606 | F72: 0.0135190462 | G72: 0.3229463677 | H72: 0.7831271919 | I72: 1.10607356 | J72: 44.24294238
B73: 14 | C73: 51.95813657 | E73: 3.315763859 | F73: 0.01355272976 | G73: 0.3256330749 | H73: 0.7987737879 | I73: 1.124406863 | J73: 44.97627451
B74: 14.25 | C74: 51.99580271 | E74: 3.310961672 | F74: 0.0135849732 | G74: 0.3282896602 | H74: 0.8143815402 | I74: 1.1426712 | J74: 45.70684802
B75: 14.5 | C75: 52.033515 | E75: 3.306164044 | F75: 0.01361577653 | G75: 0.3309168609 | H75: 0.8299459504 | I75: 1.160862811 | J75: 46.43451245
B76: 14.75 | C76: 52.07127351 | E76: 3.301370977 | F76: 0.01364513974 | G76: 0.3335153831 | H76: 0.8454625329 | I76: 1.178977916 | J76: 47.15911664
B77: 15 | C77: =94.15/( SQRT($E77)*( (($C$4/$C$6)/(1-$C$5/$C$6)) + ((((2/(1-$C$5/$C$6))*LN((1/(1-$C$5/$C$6))+1))-(((1/(1-$C$5/$C$6))-1)*LN((1/((1-$C$5/$C$6)^2))-1)))/PI() ) ) ) -> 52.10907831 | E77: 3.296582469 | F77: 0.01367306285 | G77: 0.3360859037 | H77: 0.8609268156 | I77: 1.197012719 | J77: =I77*$C$3 -> 47.88050877
B78: 15.25 | C78: 52.14692944 | E78: =$E$9*(B78*10^9)^2 + $E$10*(B78*10^9) + $E$11 -> 3.29179852 | F78: =$H$9*(B78*10^9)^2 + $H$10*(B78*10^9) + $H$11 -> 0.01369954583 | G78: =(20*LOG(EXP(1))/2) * (SQRT(PI() * (4*PI()*10^-7) / 56900000) / ($C$4*0.001)) * SQRT($B78*10^9) * (1/$C78) -> 0.3386290719 | H78: =( (20*LOG(EXP(1))/2) * 2*PI()*$B78*10^9 * $F78 *SQRT($E78) ) / (299792458*39.3700787 ) -> 0.8763343394 | I78: =G78+H78 -> 1.214963411 | J78: 48.59853645
B79: 15.5 | C79: 52.18482699 | E79: 3.287019131 | F79: 0.01372458871 | G79: 0.3411455107 | H79: 0.8916806585 | I79: 1.232826169 | J79: 49.31304677
B80: 15.75 | C80: 52.22277101 | E80: 3.282244302 | F80: 0.01374819147 | G80: 0.3436358189 | H80: 0.90696134 | I80: 1.250597159 | J80: 50.02388636
B81: 16 | C81: 52.26076156 | E81: 3.277474033 | F81: 0.01377035411 | G81: 0.3461005717 | H81: 0.9221719644 | I81: 1.268272536 | J81: 50.73090144
B82: 16.25 | C82: 52.29879871 | E82: 3.272708323 | F82: 0.01379107665 | G82: 0.3485403225 | H82: 0.9373081252 | I82: 1.285848448 | J82: 51.43393791
B83: 16.5 | C83: 52.33688253 | E83: 3.267947173 | F83: 0.01381035907 | G83: 0.3509556039 | H83: 0.952365429 | I83: 1.303321033 | J83: 52.13284132
B84: 16.75 | C84: 52.37501307 | E84: 3.263190583 | F84: 0.01382820137 | G84: 0.3533469287 | H84: 0.9673394956 | I84: 1.320686424 | J84: 52.82745697
B85: 17 | C85: 52.41319041 | E85: 3.258438552 | F85: 0.01384460356 | G85: 0.355714791 | H85: 0.9822259579 | I85: 1.337940749 | J85: 53.51762995
B86: 17.25 | C86: 52.4514146 | E86: 3.253691081 | F86: 0.01385956564 | G86: 0.3580596672 | H86: 0.9970204618 | I86: 1.355080129 | J86: 54.20320516
B87: 17.5 | C87: 52.4896857 | E87: 3.24894817 | F87: 0.01387308761 | G87: 0.3603820169 | H87: 1.011718666 | I87: 1.372100683 | J87: 54.88402733
B88: 17.75 | C88: 52.52800379 | E88: 3.244209818 | F88: 0.01388516946 | G88: 0.3626822835 | H88: 1.026316244 | I88: 1.388998527 | J88: 55.5599411
B89: 18 | C89: 52.56636893 | E89: 3.239476026 | F89: 0.0138958112 | G89: 0.3649608953 | H89: 1.04080888 | I89: 1.405769775 | J89: 56.230791
B90: 18.25 | C90: 52.60478117 | E90: 3.234746794 | F90: 0.01390501282 | G90: 0.367218266 | H90: 1.055192272 | I90: 1.422410538 | J90: 56.89642151
B91: 18.5 | C91: 52.64324059 | E91: 3.230022121 | F91: 0.01391277433 | G91: 0.3694547956 | H91: 1.069462132 | I91: 1.438916927 | J91: 57.55667709
B92: 18.75 | C92: 52.68174725 | E92: 3.225302008 | F92: 0.01391909573 | G92: 0.3716708707 | H92: 1.083614184 | I92: 1.455285055 | J92: 58.21140219
B93: 19 | C93: 52.72030121 | E93: 3.220586455 | F93: 0.01392397701 | G93: 0.3738668657 | H93: 1.097644166 | I93: 1.471511032 | J93: 58.86044126
B94: 19.25 | C94: 52.75890253 | E94: 3.215875461 | F94: 0.01392741818 | G94: 0.3760431426 | H94: 1.111547828 | I94: 1.487590971 | J94: 59.50363882
B95: 19.5 | C95: 52.79755129 | E95: 3.211169027 | F95: 0.01392941924 | G95: 0.3782000522 | H95: 1.125320934 | I95: 1.503520986 | J95: 60.14083944
B96: 19.75 | C96: 52.83624754 | E96: 3.206467153 | F96: 0.01392998018 | G96: 0.3803379342 | H96: 1.13895926 | I96: 1.519297194 | J96: 60.77188778
B97: 20 | C97: 52.87499135 | E97: 3.201769839 | F97: 0.01392910101 | G97: 0.3824571179 | H97: =( (20*LOG(EXP(1))/2) * 2*PI()*$B97*10^9 * $F97 *SQRT($E97) ) / (299792458*39.3700787 ) -> 1.152458597 | I97: 1.534915714 | J97: 61.39662858
B98: 20.25 | C98: 52.91378278 | E98: 3.197077084 | F98: 0.01392678172 | G98: 0.3845579227 | H98: 1.165814745 | I98: 1.550372668 | J98: 62.01490672
B99: 20.5 | C99: 52.9526219 | E99: 3.192388888 | F99: 0.01392302233 | G99: 0.3866406581 | H99: 1.179023522 | I99: 1.56566418 | J99: 62.62656722
B100: 20.75 | C100: 52.99150876 | E100: 3.187705253 | F100: 0.01391782281 | G100: 0.3887056248 | H100: 1.192080756 | I100: 1.580786381 | J100: 63.23145523
B101: 21 | C101: 53.03044345 | E101: 3.183026177 | F101: 0.01391118319 | G101: 0.3907531143 | H101: 1.204982288 | I101: 1.595735402 | J101: 63.82941609
B102: 21.25 | C102: 53.06942601 | E102: 3.178351661 | F102: 0.01390310345 | G102: 0.39278341 | H102: 1.217723973 | I102: 1.610507383 | J102: 64.42029532
B103: 21.5 | C103: 53.10845652 | E103: 3.173681704 | F103: 0.0138935836 | G103: 0.3947967871 | H103: 1.230301678 | I103: 1.625098465 | J103: 65.0039386
B104: 21.75 | C104: 53.14753503 | E104: 3.169016307 | F104: 0.01388262363 | G104: 0.3967935128 | H104: 1.242711284 | I104: 1.639504797 | J104: 65.58019187
B105: 22 | C105: 53.18666162 | E105: 3.16435547 | F105: 0.01387022355 | G105: 0.3987738471 | H105: 1.254948684 | I105: 1.653722531 | J105: 66.14890125
B106: 22.25 | C106: 53.22583634 | E106: 3.159699193 | F106: 0.01385638336 | G106: 0.4007380429 | H106: 1.267009785 | I106: 1.667747828 | J106: 66.70991311
B107: 22.5 | C107: 53.26505927 | E107: 3.155047475 | F107: 0.01384110305 | G107: 0.4026863458 | H107: 1.278890506 | I107: 1.681576851 | J107: 67.26307406
B108: 22.75 | C108: 53.30433046 | E108: 3.150400317 | F108: 0.01382438263 | G108: 0.4046189952 | H108: 1.290586778 | I108: 1.695205774 | J108: 67.80823095
B109: 23 | C109: =94.15/( SQRT($E109)*( (($C$4/$C$6)/(1-$C$5/$C$6)) + ((((2/(1-$C$5/$C$6))*LN((1/(1-$C$5/$C$6))+1))-(((1/(1-$C$5/$C$6))-1)*LN((1/((1-$C$5/$C$6)^2))-1)))/PI() ) ) ) -> 53.34364998 | E109: 3.145757718 | F109: 0.01380622209 | G109: 0.406536224 | H109: 1.302094548 | I109: 1.708630772 | J109: =I109*$C$3 -> 68.34523089
B110: 23.25 | C110: 53.38301789 | E110: 3.141119679 | F110: 0.01378662145 | G110: =(20*LOG(EXP(1))/2) * (SQRT(PI() * (4*PI()*10^-7) / 56900000) / ($C$4*0.001)) * SQRT($B110*10^9) * (1/$C110) -> 0.4084382587 | H110: 1.313409774 | I110: 1.721848032 | J110: 68.87392129
B111: 23.5 | C111: 53.42243427 | E111: 3.1364862 | F111: 0.01376558068 | G111: 0.4103253204 | H111: 1.324528425 | I111: 1.734853745 | J111: 69.39414981
B112: 23.75 | C112: 53.46189916 | E112: 3.131857281 | F112: 0.01374309981 | G112: 0.412197624 | H112: 1.335446486 | I112: 1.74764411 | J112: 69.90576441
B113: 24 | C113: 53.50141264 | E113: 3.127232921 | F113: 0.01371917882 | G113: 0.4140553792 | H113: 1.346159954 | I113: 1.760215334 | J113: 70.40861334
B114: 24.25 | C114: 53.54097478 | E114: 3.122613121 | F114: 0.01369381772 | G114: 0.4158987903 | H114: 1.356664839 | I114: 1.772563629 | J114: 70.90254516
B115: 24.5 | C115: 53.58058563 | E115: 3.11799788 | F115: 0.0136670165 | G115: 0.4177280566 | H115: 1.366957162 | I115: 1.784685218 | J115: 71.38740874
B116: 24.75 | C116: 53.62024526 | E116: 3.113387199 | F116: 0.01363877517 | G116: 0.4195433725 | H116: 1.377032959 | I116: 1.796576331 | J116: 71.86305326
B117: 25 | C117: 53.65995374 | E117: 3.108781078 | F117: 0.01360909373 | G117: 0.4213449275 | H117: 1.386888278 | I117: 1.808233206 | J117: 72.32932822
B118: 25.25 | C118: 53.69971113 | E118: 3.104179517 | F118: 0.01357797217 | G118: 0.4231329066 | H118: 1.39651918 | I118: 1.819652087 | J118: 72.78608348
B119: 25.5 | C119: 53.73951749 | E119: 3.099582515 | F119: 0.0135454105 | G119: 0.4249074903 | H119: 1.40592174 | I119: 1.83082923 | J119: 73.2331692
B120: 25.75 | C120: 53.77937289 | E120: 3.094990073 | F120: 0.01351140872 | G120: 0.4266688551 | H120: 1.415092042 | I120: 1.841760898 | J120: 73.6704359
B121: 26 | C121: 53.81927739 | E121: 3.090402191 | F121: 0.01347596682 | G121: 0.428417173 | H121: 1.424026188 | I121: 1.852443361 | J121: 74.09773445
B122: 26.25 | C122: 53.85923106 | E122: 3.085818868 | F122: 0.01343908481 | G122: 0.4301526121 | H122: 1.432720289 | I122: 1.862872901 | J122: 74.51491605
B123: 26.5 | C123: 53.89923397 | E123: 3.081240105 | F123: 0.01340076268 | G123: 0.4318753369 | H123: 1.44117047 | I123: 1.873045807 | J123: 74.92183229
B124: 26.75 | C124: 53.93928617 | E124: 3.076665901 | F124: 0.01336100044 | G124: 0.4335855078 | H124: 1.44937287 | I124: 1.882958378 | J124: 75.3183351
B125: 27 | C125: 53.97938774 | E125: 3.072096258 | F125: 0.01331979809 | G125: 0.4352832819 | H125: 1.457323638 | I125: 1.892606919 | J125: 75.70427678
B126: 27.25 | C126: 54.01953873 | E126: 3.067531174 | F126: 0.01327715562 | G126: 0.4369688124 | H126: 1.465018937 | I126: 1.90198775 | J126: 76.07950999
B127: 27.5 | C127: 54.05973921 | E127: 3.062970649 | F127: 0.01323307304 | G127: 0.4386422495 | H127: 1.472454945 | I127: 1.911097195 | J127: 76.44388779
B128: 27.75 | C128: 54.09998924 | E128: 3.058414685 | F128: 0.01318755035 | G128: 0.44030374 | H128: 1.47962785 | I128: 1.91993159 | J128: 76.7972636
B129: 28 | C129: 54.1402889 | E129: 3.05386328 | F129: 0.01314058754 | G129: 0.4419534274 | H129: 1.486533853 | I129: 1.928487281 | J129: 77.13949123
B130: 28.25 | C130: 54.18063824 | E130: 3.049316434 | F130: 0.01309218462 | G130: 0.4435914522 | H130: 1.493169169 | I130: 1.936760622 | J130: 77.47042487
B131: 28.5 | C131: 54.22103734 | E131: 3.044774149 | F131: 0.01304234159 | G131: 0.4452179518 | H131: 1.499530025 | I131: 1.944747977 | J131: 77.78991909
B132: 28.75 | C132: 54.26148624 | E132: 3.040236423 | F132: 0.01299105844 | G132: 0.446833061 | H132: 1.505612661 | I132: 1.952445722 | J132: 78.09782888
B133: 29 | C133: 54.30198502 | E133: 3.035703256 | F133: 0.01293833518 | G133: 0.4484369115 | H133: 1.511413328 | I133: 1.95985024 | J133: 78.39400959
B134: 29.25 | C134: 54.34253375 | E134: 3.03117465 | F134: 0.01288417181 | G134: 0.4500296323 | H134: 1.516928293 | I134: 1.966957925 | J134: 78.67831701
B135: 29.5 | C135: 54.38313249 | E135: 3.026650603 | F135: 0.01282856832 | G135: 0.4516113498 | H135: 1.522153832 | I135: 1.973765182 | J135: 78.95060729
B136: 29.75 | C136: 54.4237813 | E136: 3.022131115 | F136: 0.01277152471 | G136: 0.4531821879 | H136: 1.527086237 | I136: 1.980268425 | J136: 79.21073701
B137: 30 | C137: 54.46448024 | E137: 3.017616188 | F137: 0.012713041 | G137: 0.4547422679 | H137: 1.531721811 | I137: 1.986464079 | J137: 79.45856315

Sheet Meg6
B2: Material/Design Characteristics | E2: Freq | F2: Dk | G2: Df
B3: Length (inch) | C3: =UserInput!C3 -> 40 | E3: 100000000
B4: Trace Width (mil) | C4: =UserInput!C4 -> 8 | E4: 1000000000 | F4: 3.65 | G4: 0.004
B5: Cu Thickness (mil) | C5: =UserInput!C5 -> 0.67 | E5: 2000000000 | F5: 3.59 | G5: 0.0043
B6: Diel. Thickness (mil) | C6: =UserInput!C6 -> 17 | E6: 5000000000 | F6: 3.576 | G6: 0.0049 | H6: Loss at 6GHz: | J6: =CONCATENATE(ROUND(J41,2)," dB") -> 13.93 dB
E7: 10000000000 | F7: 3.3494 | G7: 0.0055 | H7: Loss at 12.5GHz: | J7: =CONCATENATE(ROUND(J67,2)," dB") -> 24.55 dB
E8: 20000000000 | F8: 3 | G8: 0.0065 | H8: Loss at 14GHz: | J8: =CONCATENATE(ROUND(J73,2)," dB") -> 26.89 dB
C9: DK fit to Second Order Equation | D9: c2 | E9: =INDEX(LINEST(F4:F8,E4:E8^{1,2}),1) -> -3.880112302e-22 | F9: Df fit to Second Order Equation | G9: c2 | H9: =INDEX(LINEST(G4:G8,E4:E8^{1,2}),1) -> -3.900121171e-24
D10: c1 | E10: =INDEX(LINEST(F4:F8,E4:E8^{1,2}),1,2) -> -2.600271417e-11 | G10: c1 | H10: =INDEX(LINEST(G4:G8,E4:E8^{1,2}),1,2) -> 2.093450195e-13
D11: b | E11: =INDEX(LINEST(F4:F8,E4:E8^{1,2}),1,3) -> 3.671829818 | G11: b | H11: =INDEX(LINEST(G4:G8,E4:E8^{1,2}),1,3) -> 0.003862390696
B12: Frequency (GHz) | C12: Zo | E12: Dk | F12: Df | G12: αcond | H12: αdiel | I12: αtotal | J12: Atotal
B13: 0.01 | C13: =94.15/( SQRT($E13)*( (($C$4/$C$6)/(1-$C$5/$C$6)) + ((((2/(1-$C$5/$C$6))*LN((1/(1-$C$5/$C$6))+1))-(((1/(1-$C$5/$C$6))-1)*LN((1/((1-$C$5/$C$6)^2))-1)))/PI() ) ) ) -> 49.37640564 | E13: =$E$9*(B13*10^9)^2 + $E$10*(B13*10^9) + $E$11 -> 3.671569752 | F13: =$H$9*(B13*10^9)^2 + $H$10*(B13*10^9) + $H$11 -> 0.003864483756 | G13: =(20*LOG(EXP(1))/2) * (SQRT(PI() * (4*PI()*10^-7*0.999994) / 56900000) / ($C$4*0.001)) * SQRT($B13*10^9) * (1/$C13) -> 0.009157929257 | H13: =( (20*LOG(EXP(1))/2) * 2*PI()*$B13*10^9 * $F13 *SQRT($E13) ) / (299792458*39.3700787 ) -> 0.0001711963778 | I13: =G13+H13 -> 0.009329125634 | J13: =I13*$C$3 -> 0.3731650254
B14: 0.05 | C14: 49.38340724 | E14: =$E$9*(B14*10^9)^2 + $E$10*(B14*10^9) + $E$11 -> 3.670528712 | F14: =$H$9*(B14*10^9)^2 + $H$10*(B14*10^9) + $H$11 -> 0.003872848197 | G14: =(20*LOG(EXP(1))/2) * (SQRT(PI() * (4*PI()*10^-7) / 56900000) / ($C$4*0.001)) * SQRT($B14*10^9) * (1/$C14) -> 0.02047491043 | H14: =( (20*LOG(EXP(1))/2) * 2*PI()*$B14*10^9 * $F14 *SQRT($E14) ) / (299792458*39.3700787 ) -> 0.0008577129857 | I14: =G14+H14 -> 0.02133262342 | J14: 0.8533049367
B15: 0.1 | C15: 49.39217518 | E15: 3.669225667 | F15: 0.003883286197 | G15: 0.02895075586 | H15: 0.001719744005 | I15: 0.03067049987 | J15: 1.226819995
B16: 0.15 | C16: 49.40096086 | E16: 3.667920681 | F16: 0.003893704696 | G16: 0.03545098388 | H16: 0.002586076879 | I16: 0.03803706076 | J16: 1.521482431
B17: 0.2 | C17: 49.40976431 | E17: 3.666613755 | F17: 0.003904103695 | G17: 0.04092797665 | H17: 0.003456695429 | I17: 0.04438467208 | J17: 1.775386883
B18: 0.25 | C18: 49.41858554 | E18: 3.665304889 | F18: 0.003914483193 | G18: 0.04575070102 | H18: 0.004331583476 | I18: 0.0500822845 | J18: 2.00329138
B19: 0.5 | C19: 49.46295937 | E19: 3.658731458 | F19: 0.003966088175 | G19: 0.06464321757 | H19: 0.008769499966 | I19: 0.07341271754 | J19: 2.936508702
B20: 0.75 | C20: 49.50778168 | E20: 3.652109526 | F20: 0.004017205643 | G20: 0.07909977061 | H20: 0.01331172748 | I20: 0.09241149808 | J20: 3.696459923
B21: 1 | C21: 49.55305571 | E21: 3.645439093 | F21: 0.004067835594 | G21: 0.09125309829 | H21: 0.01795624445 | I21: 0.1092093427 | J21: 4.36837371
B22: 1.25 | C22: 49.59878473 | E22: 3.638720158 | F22: 0.004117978031 | G22: 0.1019300015 | H22: 0.02270102989 | I22: 0.1246310314 | J22: 4.985241254
B23: 1.5 | C23: 49.64497206 | E23: 3.631952722 | F23: 0.004167632953 | G23: 0.1115548402 | H23: 0.0275440634 | I23: 0.1390989036 | J23: 5.563956144
B24: 1.75 | C24: 49.69162108 | E24: 3.625136784 | F24: 0.004216800359 | G24: 0.1203798836 | H24: 0.03248332533 | I24: 0.1528632089 | J24: 6.114528356
B25: 2 | C25: 49.7387352 | E25: 3.618272345 | F25: 0.00426548025 | G25: 0.128569608 | H25: 0.03751679682 | I25: 0.1660864048 | J25: 6.643456193
B26: 2.25 | C26: 49.78631791 | E26: 3.611359404 | F26: 0.004313672626 | G26: 0.1362383297 | H26: 0.04264245996 | I26: 0.1788807897 | J26: 7.155231587
B27: 2.5 | C27: 49.83437273 | E27: 3.604397962 | F27: 0.004361377487 | G27: 0.1434693292 | H27: 0.04785829779 | I27: 0.191327627 | J27: 7.653105079
B28: 2.75 | C28: 49.88290323 | E28: 3.597388019 | F28: 0.004408594833 | G28: 0.1503255095 | H28: 0.0531622945 | I28: 0.203487804 | J28: 8.13951216
B29: 3 | C29: 49.93191306 | E29: 3.590329575 | F29: 0.004455324664 | G29: 0.1568557636 | H29: 0.05855243542 | I29: 0.215408199 | J29: 8.616327959
B30: 3.25 | C30: 49.98140588 | E30: 3.583222628 | F30: 0.00450156698 | G30: 0.1630989902 | H30: 0.0640267072 | I30: 0.2271256974 | J30: 9.085027895
B31: 3.5 | C31: 50.03138545 | E31: 3.576067181 | F31: 0.00454732178 | G31: 0.1690867405 | H31: 0.06958309785 | I31: 0.2386698383 | J31: 9.546793533
B32: 3.75 | C32: 50.08185556 | E32: 3.568863232 | F32: 0.004592589065 | G32: 0.174845026 | H32: 0.07521959685 | I32: 0.2500646228 | J32: 10.00258491
B33: 4 | C33: 50.13282007 | E33: 3.561610782 | F33: 0.004637368835 | G33: 0.1803955914 | H33: 0.08093419527 | I33: 0.2613297867 | J33: 10.45319147
B34: 4.25 | C34: 50.18428288 | E34: 3.55430983 | F34: 0.00468166109 | G34: 0.1857568346 | H34: 0.08672488581 | I34: 0.2724817205 | J34: 10.89926882
B35: 4.5 | C35: 50.23624796 | E35: 3.546960377 | F35: 0.00472546583 | G35: 0.1909444857 | H35: 0.09258966296 | I35: 0.2835341487 | J35: 11.34136595
B36: 4.75 | C36: 50.28871934 | E36: 3.539562422 | F36: 0.004768783055 | G36: 0.1959721189 | H36: 0.09852652303 | I36: 0.2944986419 | J36: 11.77994568
B37: 5 | C37: 50.34170112 | E37: 3.532115966 | F37: 0.004811612764 | G37: 0.200851544 | H37: 0.1045334643 | I37: 0.3053850083 | J37: 12.21540033
B38: 5.25 | C38: 50.39519745 | E38: 3.524621009 | F38: 0.004853954959 | G38: 0.2055931119 | H38: 0.1106084871 | I38: 0.316201599 | J38: 12.64806396
B39: 5.5 | C39: 50.44921253 | E39: 3.51707755 | F39: 0.004895809638 | G39: 0.2102059538 | H39: 0.1167495939 | I39: 0.3269555476 | J39: 13.0782219
B40: 5.75 | C40: 50.50375065 | E40: 3.50948559 | F40: 0.004937176802 | G40: 0.2146981735 | H40: 0.1229547893 | I40: 0.3376529628 | J40: 13.50611851
B41: 6 | C41: 50.55881615 | E41: 3.501845129 | F41: 0.004978056451 | G41: 0.2190770016 | H41: 0.1292220805 | I41: 0.3482990821 | J41: 13.93196329
B42: 6.25 | C42: 50.61441344 | E42: 3.494156166 | F42: 0.005018448585 | G42: 0.2233489216 | H42: 0.1355494769 | I42: 0.3588983984 | J42: 14.35593594
B43: 6.5 | C43: 50.670547 | E43: 3.486418702 | F43: 0.005058353203 | G43: 0.2275197727 | H43: 0.1419349904 | I43: 0.3694547631 | J43: 14.77819052
B44: 6.75 | C44: 50.72722137 | E44: 3.478632736 | F44: 0.005097770307 | G44: 0.2315948362 | H44: 0.1483766357 | I44: 0.3799714719 | J44: 15.19885888
B45: 7 | C45: =94.15/( SQRT($E45)*( (($C$4/$C$6)/(1-$C$5/$C$6)) + ((((2/(1-$C$5/$C$6))*LN((1/(1-$C$5/$C$6))+1))-(((1/(1-$C$5/$C$6))-1)*LN((1/((1-$C$5/$C$6)^2))-1)))/PI() ) ) ) -> 50.78444117 | E45: 3.470798269 | F45: 0.005136699895 | G45: 0.2355789066 | H45: 0.1548724302 | I45: 0.3904513368 | J45: =I45*$C$3 -> 15.61805347
B46: 7.25 | C46: 50.84221107 | E46: 3.4629153 | F46: 0.005175141968 | G46: =(20*LOG(EXP(1))/2) * (SQRT(PI() * (4*PI()*10^-7) / 56900000) / ($C$4*0.001)) * SQRT($B46*10^9) * (1/$C46) -> 0.2394763518 | H46: 0.161420394 | I46: 0.4008967459 | J46: 16.03586983
B47: 7.5 | C47: 50.90053585 | E47: 3.45498383 | F47: 0.005213096526 | G47: 0.2432911643 | H47: 0.1680185503 | I47: 0.4113097146 | J47: 16.45238859
B48: 7.75 | C48: 50.95942032 | E48: 3.447003859 | F48: 0.005250563569 | G48: 0.2470270043 | H48: 0.1746649251 | I48: 0.4216919294 | J48: 16.86767717
B49: 8 | C49: 51.01886939 | E49: 3.438975386 | F49: 0.005287543097 | G49: 0.2506872365 | H49: 0.1813575477 | I49: 0.4320447842 | J49: 17.28179137
B50: 8.25 | C50: 51.07888805 | E50: 3.430898412 | F50: 0.00532403511 | G50: 0.2542749627 | H50: 0.1880944506 | I50: 0.4423694133 | J50: 17.69477653
B51: 8.5 | C51: 51.13948135 | E51: 3.422772936 | F51: 0.005360039607 | G51: 0.257793049 | H51: 0.1948736695 | I51: 0.4526667185 | J51: 18.10666874
B52: 8.75 | C52: 51.20065444 | E52: 3.414598959 | F52: 0.005395556589 | G52: 0.2612441499 | H52: 0.2016932437 | I52: 0.4629373935 | J52: 18.51749574
B53: 9 | C53: 51.26241251 | E53: 3.406376481 | F53: 0.005430586057 | G53: 0.2646307289 | H53: 0.2085512159 | I53: 0.4731819448 | J53: 18.92727779
B54: 9.25 | C54: 51.32476089 | E54: 3.398105501 | F54: 0.005465128009 | G54: 0.2679550776 | H54: 0.2154456325 | I54: 0.4834007101 | J54: 19.3360284
B55: 9.5 | C55: 51.38770493 | E55: 3.38978602 | F55: 0.005499182445 | G55: 0.271219331 | H55: 0.2223745435 | I55: 0.4935938745 | J55: 19.74375498
B56: 9.75 | C56: 51.45125013 | E56: 3.381418037 | F56: 0.005532749367 | G56: 0.2744254822 | H56: 0.229336003 | I56: 0.5037614852 | J56: 20.15045941
B57: 10 | C57: 51.51540201 | E57: 3.373001553 | F57: 0.005565828774 | G57: 0.2775753948 | H57: 0.2363280688 | I57: 0.5139034636 | J57: 20.55613854
B58: 10.25 | C58: 51.58016623 | E58: 3.364536568 | F58: 0.005598420665 | G58: 0.2806708143 | H58: 0.2433488027 | I58: 0.5240196171 | J58: 20.96078468
B59: 10.5 | C59: 51.64554852 | E59: 3.356023081 | F59: 0.005630525042 | G59: 0.283713378 | H59: 0.2503962709 | I59: 0.5341096489 | J59: 21.36438595
B60: 10.75 | C60: 51.71155469 | E60: 3.347461093 | F60: 0.005662141903 | G60: 0.2867046236 | H60: 0.2574685436 | I60: 0.5441731671 | J60: 21.76692669
B61: 11 | C61: 51.77819066 | E61: 3.338850603 | F61: 0.005693271249 | G61: 0.2896459976 | H61: 0.2645636954 | I61: 0.554209693 | J61: 22.16838772
B62: 11.25 | C62: 51.84546244 | E62: 3.330191612 | F62: 0.00572391308 | G62: 0.2925388623 | H62: 0.2716798055 | I62: 0.5642186679 | J62: 22.56874672
B63: 11.5 | C63: 51.91337613 | E63: 3.32148412 | F63: 0.005754067395 | G63: 0.2953845024 | H63: 0.2788149576 | I63: 0.57419946 | J63: 22.9679784
B64: 11.75 | C64: 51.98193794 | E64: 3.312728126 | F64: 0.005783734196 | G64: 0.2981841305 | H64: 0.2859672399 | I64: 0.5841513704 | J64: 23.36605482
B65: 12 | C65: 52.05115416 | E65: 3.303923631 | F65: 0.005812913481 | G65: 0.3009388927 | H65: 0.2931347456 | I65: 0.5940736384 | J65: 23.76294553
B66: 12.25 | C66: 52.1210312 | E66: 3.295070634 | F66: 0.005841605252 | G66: 0.3036498733 | H66: 0.3003155727 | I66: 0.603965446 | J66: 24.15861784
B67: 12.5 | C67: 52.19157558 | E67: 3.286169136 | F67: 0.005869809507 | G67: 0.3063180991 | H67: 0.3075078241 | I67: 0.6138259233 | J67: 24.55303693
B68: 12.75 | C68: 52.2627939 | E68: 3.277219137 | F68: 0.005897526247 | G68: 0.3089445434 | H68: 0.314709608 | I68: 0.6236541514 | J68: 24.94616606
B69: 13 | C69: 52.33469289 | E69: 3.268220636 | F69: 0.005924755471 | G69: 0.3115301295 | H69: 0.3219190376 | I69: 0.6334491672 | J69: 25.33796669
B70: 13.25 | C70: 52.40727938 | E70: 3.259173634 | F70: 0.005951497181 | G70: 0.3140757343 | H70: 0.3291342316 | I70: 0.6432099659 | J70: 25.72839864
B71: 13.5 | C71: 52.48056032 | E71: 3.25007813 | F71: 0.005977751376 | G71: 0.316582191 | H71: 0.336353314 | I71: 0.652935505 | J71: 26.1174202
B72: 13.75 | C72: 52.55454277 | E72: 3.240934125 | F72: 0.006003518055 | G72: 0.3190502921 | H72: 0.3435744143 | I72: 0.6626247064 | J72: 26.50498826
B73: 14 | C73: 52.62923391 | E73: 3.231741619 | F73: 0.006028797219 | G73: 0.3214807916 | H73: 0.3507956679 | I73: 0.6722764595 | J73: 26.89105838
B74: 14.25 | C74: 52.70464103 | E74: 3.222500611 | F74: 0.006053588868 | G74: 0.3238744078 | H74: 0.3580152157 | I74: 0.6818896236 | J74: 27.27558494
B75: 14.5 | C75: 52.78077156 | E75: 3.213211101 | F75: 0.006077893002 | G75: 0.3262318253 | H75: 0.3652312046 | I75: 0.69146303 | J75: 27.6585212
B76: 14.75 | C76: 52.85763303 | E76: 3.203873091 | F76: 0.006101709621 | G76: 0.3285536968 | H76: 0.3724417875 | I76: 0.7009954843 | J76: 28.03981937
B77: 15 | C77: =94.15/( SQRT($E77)*( (($C$4/$C$6)/(1-$C$5/$C$6)) + ((((2/(1-$C$5/$C$6))*LN((1/(1-$C$5/$C$6))+1))-(((1/(1-$C$5/$C$6))-1)*LN((1/((1-$C$5/$C$6)^2))-1)))/PI() ) ) ) -> 52.93523312 | E77: 3.194486579 | F77: 0.006125038725 | G77: 0.3308406451 | H77: 0.3796451233 | I77: 0.7104857685 | J77: =I77*$C$3 -> 28.41943074
B78: 15.25 | C78: 53.01357962 | E78: =$E$9*(B78*10^9)^2 + $E$10*(B78*10^9) + $E$11 -> 3.185051565 | F78: =$H$9*(B78*10^9)^2 + $H$10*(B78*10^9) + $H$11 -> 0.006147880313 | G78: =(20*LOG(EXP(1))/2) * (SQRT(PI() * (4*PI()*10^-7) / 56900000) / ($C$4*0.001)) * SQRT($B78*10^9) * (1/$C78) -> 0.3330932649 | H78: =( (20*LOG(EXP(1))/2) * 2*PI()*$B78*10^9 * $F78 *SQRT($E78) ) / (299792458*39.3700787 ) -> 0.3868393773 | I78: =G78+H78 -> 0.7199326421 | J78: 28.79730569
B79: 15.5 | C79: 53.09268047 | E79: 3.17556805 | F79: 0.006170234387 | G79: 0.3353121239 | H79: 0.3940227209 | I79: 0.7293348448 | J79: 29.17339379
B80: 15.75 | C80: 53.17254374 | E80: 3.166036034 | F80: 0.006192100945 | G80: 0.3374977652 | H80: 0.4011933321 | I80: 0.7386910972 | J80: 29.54764389
B81: 16 | C81: 53.25317762 | E81: 3.156455516 | F81: 0.006213479988 | G81: 0.3396507075 | H81: 0.4083493955 | I81: 0.7480001029 | J81: 29.92000412
B82: 16.25 | C82: 53.33459047 | E82: 3.146826497 | F82: 0.006234371516 | G82: 0.3417714472 | H82: 0.4154891023 | I82: 0.7572605495 | J82: 30.29042198
B83: 16.5 | C83: 53.41679076 | E83: 3.137148977 | F83: 0.006254775529 | G83: 0.3438604595 | H83: 0.4226106505 | I83: 0.76647111 | J83: 30.6588444
B84: 16.75 | C84: 53.49978714 | E84: 3.127422955 | F84: 0.006274692026 | G84: 0.3459181989 | H84: 0.4297122452 | I84: 0.7756304441 | J84: 31.02521776
B85: 17 | C85: 53.5835884 | E85: 3.117648432 | F85: 0.006294121009 | G85: 0.3479451009 | H85: 0.4367920982 | I85: 0.7847371992 | J85: 31.38948797
B86: 17.25 | C86: 53.66820345 | E86: 3.107825407 | F86: 0.006313062476 | G86: 0.3499415827 | H86: 0.4438484288 | I86: 0.7937900115 | J86: 31.75160046
B87: 17.5 | C87: 53.75364141 | E87: 3.097953881 | F87: 0.006331516428 | G87: 0.3519080439 | H87: 0.4508794635 | I87: 0.8027875073 | J87: 32.11150029
B88: 17.75 | C88: 53.83991152 | E88: 3.088033853 | F88: 0.006349482865 | G88: 0.3538448676 | H88: 0.457883436 | I88: 0.8117283035 | J88: 32.46913214
B89: 18 | C89: 53.9270232 | E89: 3.078065324 | F89: 0.006366961787 | G89: 0.3557524211 | H89: 0.4648585877 | I89: 0.8206110088 | J89: 32.82444035
B90: 18.25 | C90: 54.01498603 | E90: 3.068048294 | F90: 0.006383953194 | G90: 0.3576310566 | H90: 0.4718031678 | I90: 0.8294342244 | J90: 33.17736898
B91: 18.5 | C91: 54.10380976 | E91: 3.057982762 | F91: 0.006400457086 | G91: 0.3594811119 | H91: 0.4787154331 | I91: 0.838196545 | J91: 33.5278618
B92: 18.75 | C92: 54.19350433 | E92: 3.047868729 | F92: 0.006416473462 | G92: 0.361302911 | H92: 0.4855936482 | I92: 0.8468965592 | J92: 33.87586237
B93: 19 | C93: 54.28407983 | E93: 3.037706195 | F93: 0.006432002323 | G93: 0.3630967649 | H93: 0.492436086 | I93: 0.8555328509 | J93: 34.22131404
B94: 19.25 | C94: 54.37554655 | E94: 3.027495159 | F94: 0.00644704367 | G94: 0.3648629718 | H94: 0.4992410274 | I94: 0.8641039992 | J94: 34.56415997
B95: 19.5 | C95: 54.46791496 | E95: 3.017235621 | F95: 0.006461597501 | G95: 0.3666018181 | H95: 0.5060067616 | I95: 0.8726085797 | J95: 34.90434319
B96: 19.75 | C96: 54.56119572 | E96: 3.006927583 | F96: 0.006475663817 | G96: 0.3683135784 | H96: 0.5127315863 | I96: 0.8810451647 | J96: 35.24180659
B97: 20 | C97: 54.6553997 | E97: 2.996571043 | F97: 0.006489242617 | G97: 0.3699985164 | H97: =( (20*LOG(EXP(1))/2) * 2*PI()*$B97*10^9 * $F97 *SQRT($E97) ) / (299792458*39.3700787 ) -> 0.5194138076 | I97: 0.889412324 | J97: 35.57649296
B98: 20.25 | C98: 54.75053794 | E98: 2.986166001 | F98: 0.006502333903 | G98: 0.371656885 | H98: 0.5260517405 | I98: 0.8977086256 | J98: 35.90834502
B99: 20.5 | C99: 54.84662171 | E99: 2.975712458 | F99: 0.006514937673 | G99: 0.3732889272 | H99: 0.5326437087 | I99: 0.9059326359 | J99: 36.23730544
B100: 20.75 | C100: 54.94366247 | E100: 2.965210414 | F100: 0.006527053929 | G100: 0.3748948759 | H100: 0.5391880448 | I100: 0.9140829206 | J100: 36.56331683
B101: 21 | C101: 55.0416719 | E101: 2.954659868 | F101: 0.006538682669 | G101: 0.3764749546 | H101: 0.5456830905 | I101: 0.9221580451 | J101: 36.8863218
B102: 21.25 | C102: 55.1406619 | E102: 2.944060821 | F102: 0.006549823894 | G102: 0.378029378 | H102: 0.5521271968 | I102: 0.9301565748 | J102: 37.20626299
B103: 21.5 | C103: 55.24064458 | E103: 2.933413272 | F103: 0.006560477604 | G103: 0.3795583516 | H103: 0.5585187241 | I103: 0.9380770757 | J103: 37.52308303
B104: 21.75 | C104: 55.34163231 | E104: 2.922717222 | F104: 0.006570643798 | G104: 0.3810620729 | H104: 0.5648560422 | I104: 0.945918115 | J104: 37.8367246
B105: 22 | C105: 55.44363764 | E105: 2.911972671 | F105: 0.006580322478 | G105: 0.382540731 | H105: 0.5711375304 | I105: 0.9536782614 | J105: 38.14713046
B106: 22.25 | C106: 55.54667342 | E106: 2.901179618 | F106: 0.006589513642 | G106: 0.3839945072 | H106: 0.5773615782 | I106: 0.9613560854 | J106: 38.45424342
B107: 22.5 | C107: 55.6507527 | E107: 2.890338064 | F107: 0.006598217292 | G107: 0.3854235754 | H107: 0.5835265846 | I107: 0.9689501599 | J107: 38.7580064
B108: 22.75 | C108: 55.7558888 | E108: 2.879448008 | F108: 0.006606433426 | G108: 0.3868281019 | H108: 0.5896309589 | I108: 0.9764590607 | J108: 39.05836243
B109: 23 | C109: =94.15/( SQRT($E109)*( (($C$4/$C$6)/(1-$C$5/$C$6)) + ((((2/(1-$C$5/$C$6))*LN((1/(1-$C$5/$C$6))+1))-(((1/(1-$C$5/$C$6))-1)*LN((1/((1-$C$5/$C$6)^2))-1)))/PI() ) ) ) -> 55.86209529 | E109: 2.868509451 | F109: 0.006614162045 | G109: 0.3882082461 | H109: 0.5956731205 | I109: 0.9838813666 | J109: =I109*$C$3 -> 39.35525466
B110: 23.25 | C110: 55.96938601 | E110: 2.857522393 | F110: 0.006621403149 | G110: =(20*LOG(EXP(1))/2) * (SQRT(PI() * (4*PI()*10^-7) / 56900000) / ($C$4*0.001)) * SQRT($B110*10^9) * (1/$C110) -> 0.3895641605 | H110: 0.6016514992 | I110: 0.9912156597 | J110: 39.64862639
B111: 23.5 | C111: 56.07777506 | E111: 2.846486833 | F111: 0.006628156737 | G111: 0.390895991 | H111: 0.6075645354 | I111: 0.9984605264 | J111: 39.93842106
B112: 23.75 | C112: 56.18727683 | E112: 2.835402772 | F112: 0.006634422811 | G112: 0.3922038769 | H112: 0.61341068 | I112: 1.005614557 | J112: 40.22458228
B113: 24 | C113: 56.29790597 | E113: 2.824270209 | F113: 0.006640201369 | G113: 0.3934879516 | H113: 0.6191883948 | I113: 1.012676346 | J113: 40.50705385
B114: 24.25 | C114: 56.40967745 | E114: 2.813089145 | F114: 0.006645492412 | G114: 0.394748342 | H114: 0.6248961525 | I114: 1.019644494 | J114: 40.78577978
B115: 24.5 | C115: 56.5226065 | E115: 2.80185958 | F115: 0.00665029594 | G115: 0.3959851694 | H115: 0.6305324369 | I115: 1.026517606 | J115: 41.06070425
B116: 24.75 | C116: 56.6367087 | E116: 2.790581513 | F116: 0.006654611953 | G116: 0.3971985493 | H116: 0.6360957432 | I116: 1.033294292 | J116: 41.3317717
B117: 25 | C117: 56.7519999 | E117: 2.779254945 | F117: 0.006658440451 | G117: 0.3983885917 | H117: 0.6415845779 | I117: 1.03997317 | J117: 41.59892678
B118: 25.25 | C118: 56.86849629 | E118: 2.767879875 | F118: 0.006661781434 | G118: 0.3995554012 | H118: 0.6469974591 | I118: 1.04655286 | J118: 41.86211441
B119: 25.5 | C119: 56.9862144 | E119: 2.756456304 | F119: 0.006664634901 | G119: 0.4006990769 | H119: 0.6523329166 | I119: 1.053031994 | J119: 42.12127974
B120: 25.75 | C120: 57.10517107 | E120: 2.744984232 | F120: 0.006667000854 | G120: 0.4018197132 | H120: 0.6575894923 | I120: 1.059409205 | J120: 42.37636822
B121: 26 | C121: 57.22538349 | E121: 2.733463658 | F121: 0.006668879291 | G121: 0.402917399 | H121: 0.6627657399 | I121: 1.065683139 | J121: 42.62732555
B122: 26.25 | C122: 57.34686924 | E122: 2.721894583 | F122: 0.006670270213 | G122: 0.4039922186 | H122: 0.6678602254 | I122: 1.071852444 | J122: 42.87409776
B123: 26.5 | C123: 57.46964621 | E123: 2.710277006 | F123: 0.00667117362 | G123: 0.4050442514 | H123: 0.6728715274 | I123: 1.077915779 | J123: 43.11663115
B124: 26.75 | C124: 57.59373271 | E124: 2.698610928 | F124: 0.006671589512 | G124: 0.4060735724 | H124: 0.6777982368 | I124: 1.083871809 | J124: 43.35487237
B125: 27 | C125: 57.7191474 | E125: 2.686896349 | F125: 0.006671517888 | G125: 0.4070802516 | H125: 0.6826389575 | I125: 1.089719209 | J125: 43.58876836
B126: 27.25 | C126: 57.84590936 | E126: 2.675133268 | F126: 0.00667095875 | G126: 0.4080643548 | H126: 0.6873923059 | I126: 1.095456661 | J126: 43.81826643
B127: 27.5 | C127: 57.97403806 | E127: 2.663321686 | F127: 0.006669912096 | G127: 0.4090259435 | H127: 0.692056912 | I127: 1.101082856 | J127: 44.04331422
B128: 27.75 | C128: 58.10355337 | E128: 2.651461602 | F128: 0.006668377927 | G128: 0.4099650747 | H128: 0.6966314187 | I128: 1.106596493 | J128: 44.26385973
B129: 28 | C129: 58.23447562 | E129: 2.639553017 | F129: 0.006666356243 | G129: 0.4108818013 | H129: 0.7011144824 | I129: 1.111996284 | J129: 44.47985135
B130: 28.25 | C130: 58.36682555 | E130: 2.62759593 | F130: 0.006663847044 | G130: 0.411776172 | H130: 0.7055047731 | I130: 1.117280945 | J130: 44.69123781
B131: 28.5 | C131: 58.50062437 | E131: 2.615590342 | F131: 0.00666085033 | G131: 0.4126482315 | H131: 0.7098009749 | I131: 1.122449206 | J131: 44.89796826
B132: 28.75 | C132: 58.63589374 | E132: 2.603536253 | F132: 0.006657366101 | G132: 0.4134980205 | H132: 0.7140017855 | I132: 1.127499806 | J132: 45.09999224
B133: 29 | C133: 58.7726558 | E133: 2.591433662 | F133: 0.006653394356 | G133: 0.4143255757 | H133: 0.7181059168 | I133: 1.132431493 | J133: 45.2972597
B134: 29.25 | C134: 58.91093317 | E134: 2.57928257 | F134: 0.006648935096 | G134: 0.4151309301 | H134: 0.7221120954 | I134: 1.137243026 | J134: 45.48972102
B135: 29.5 | C135: 59.05074899 | E135: 2.567082977 | F135: 0.006643988322 | G135: 0.4159141127 | H135: 0.7260190622 | I135: 1.141933175 | J135: 45.67732699
B136: 29.75 | C136: 59.19212689 | E136: 2.554834882 | F136: 0.006638554032 | G136: 0.4166751488 | H136: 0.7298255727 | I136: 1.146500722 | J136: 45.86002886
B137: 30 | C137: 59.33509107 | E137: 2.542538286 | F137: 0.006632632227 | G137: 0.41741406 | H137: 0.7335303978 | I137: 1.150944458 | J137: 46.03777831

Sheet ImpvFR4
B2: Material/Design Characteristics | E2: Freq | F2: Dk | G2: Df
B3: Length (inch) | C3: =UserInput!C3 -> 40 | E3: 100000000 | F3: 3.6 | G3: 0.0092
B4: Trace Width (mil) | C4: =UserInput!C4 -> 8 | E4: 1000000000 | F4: 3.6 | G4: 0.0092
B5: Cu Thickness (mil) | C5: =UserInput!C5 -> 0.67 | E5: 2000000000 | F5: 3.5 | G5: 0.0115
B6: Diel. Thickness (mil) | C6: =UserInput!C6 -> 17 | E6: 5000000000 | F6: 3.5 | G6: 0.0115 | H6: Loss at 6GHz: | J6: =CONCATENATE(ROUND(J41,2)," dB") -> 20.88 dB
E7: 10000000000 | F7: 3.4 | G7: 0.0125 | H7: Loss at 12.5GHz: | J7: =CONCATENATE(ROUND(J67,2)," dB") -> 40.54 dB
E8: 20000000000 | F8: 3.2 | G8: 0.014 | H8: Loss at 14GHz: | J8: =CONCATENATE(ROUND(J73,2)," dB") -> 44.98 dB
C9: DK fit to Second Order Equation | D9: c2 | E9: =INDEX(LINEST(F3:F8,E3:E8^{1,2}),1) -> 3.647739517e-23 | F9: Df fit to Second Order Equation | G9: c2 | H9: =INDEX(LINEST(G3:G8,E3:E8^{1,2}),1) -> -1.152090891e-23
D10: c1 | E10: =INDEX(LINEST(F3:F8,E3:E8^{1,2}),1,2) -> -2.023923483e-11 | G10: c1 | H10: =INDEX(LINEST(G3:G8,E3:E8^{1,2}),1,2) -> 4.544394446e-13
D11: b | E11: =INDEX(LINEST(F3:F8,E3:E8^{1,2}),1,3) -> 3.591963577 | G11: b | H11: =INDEX(LINEST(G3:G8,E3:E8^{1,2}),1,3) -> 0.009448675682
B12: Frequency (GHz) | C12: Zo | E12: Dk | F12: Df | G12: αcond | H12: αdiel | I12: αtotal | J12: Atotal
B13: 0.01 | C13: =94.15/( SQRT($E13)*( (($C$4/$C$6)/(1-$C$5/$C$6)) + ((((2/(1-$C$5/$C$6))*LN((1/(1-$C$5/$C$6))+1))-(((1/(1-$C$5/$C$6))-1)*LN((1/((1-$C$5/$C$6)^2))-1)))/PI() ) ) ) -> 49.92196107 | E13: =$E$9*(B13*10^9)^2 + $E$10*(B13*10^9) + $E$11 -> 3.591761188 | F13: =$H$9*(B13*10^9)^2 + $H$10*(B13*10^9) + $H$11 -> 0.009453218925 | G13: =(20*LOG(EXP(1))/2) * (SQRT(PI() * (4*PI()*10^-7*0.999994) / 56900000) / ($C$4*0.001)) * SQRT($B13*10^9) * (1/$C13) -> 0.009057849895 | H13: =( (20*LOG(EXP(1))/2) * 2*PI()*$B13*10^9 * $F13 *SQRT($E13) ) / (299792458*39.3700787 ) -> 0.0004142005165 | I13: =G13+H13 -> 0.009472050411 | J13: =I13*$C$3 -> 0.3788820164
B14: 0.05 | C14: 49.92758752 | E14: =$E$9*(B14*10^9)^2 + $E$10*(B14*10^9) + $E$11 -> 3.590951707 | F14: =$H$9*(B14*10^9)^2 + $H$10*(B14*10^9) + $H$11 -> 0.009471368852 | G14: =(20*LOG(EXP(1))/2) * (SQRT(PI() * (4*PI()*10^-7) / 56900000) / ($C$4*0.001)) * SQRT($B14*10^9) * (1/$C14) -> 0.02025174638 | H14: =( (20*LOG(EXP(1))/2) * 2*PI()*$B14*10^9 * $F14 *SQRT($E14) ) / (299792458*39.3700787 ) -> 0.002074745018 | I14: =G14+H14 -> 0.0223264914 | J14: 0.8930596561
B15: 0.1 | C15: 49.93462212 | E15: 3.589940018 | F15: 0.009494004418 | G15: 0.02863625966 | H15: 0.004158820915 | I15: 0.03279508058 | J15: 1.311803223
B16: 0.15 | C16: 49.94165843 | E16: 3.588928513 | F16: 0.009516582378 | G16: 0.03506717083 | H16: 0.00625218569 | I16: 0.04131935652 | J16: 1.652774261
B17: 0.2 | C17: 49.94869644 | E17: 3.587917189 | F17: 0.009539102735 | G17: 0.0404863755 | H17: 0.008354797362 | I17: 0.04884117287 | J17: 1.953646915
B18: 0.25 | C18: 49.95573616 | E18: 3.586906048 | F18: 0.009561565487 | G18: 0.04525876517 | H18: 0.01046661397 | I18: 0.05572537915 | J18: 2.229015166
B19: 0.5 | C19: 49.99096036 | E19: 3.581853079 | F19: 0.009673015177 | G19: 0.06396046047 | H19: 0.02116230412 | I19: 0.08512276459 | J19: 3.404910584
B20: 0.75 | C20: 50.02622729 | E20: 3.57680467 | F20: 0.009783024754 | G20: 0.07828002203 | H20: 0.03208183653 | I20: 0.1103618586 | J20: 4.414474342
B21: 1 | C21: 50.06153701 | E21: 3.57176082 | F21: 0.009891594218 | G21: 0.09032622914 | H21: 0.04321999082 | I21: 0.13354622 | J21: 5.341848799
B22: 1.25 | C22: 50.09688959 | E22: 3.56672153 | F22: 0.009998723568 | G22: 0.1009165288 | H22: 0.05457156017 | I22: 0.155488089 | J22: 6.219523558
B23: 1.5 | C23: 50.13228507 | E23: 3.561686799 | F23: 0.0101044128 | G23: 0.1104704666 | H23: 0.06613135125 | I23: 0.1766018179 | J23: 7.064072715
B24: 1.75 | C24: 50.16772353 | E24: 3.556656628 | F24: 0.01020866193 | G24: 0.1192374527 | H24: 0.0778941843 | I24: 0.197131637 | J24: 7.885265479
B25: 2 | C25: 50.20320502 | E25: 3.551631017 | F25: 0.01031147094 | G25: 0.1273801082 | H25: 0.08985489303 | I25: 0.2172350012 | J25: 8.689400049
B26: 2.25 | C26: 50.23872961 | E26: 3.546609966 | F26: 0.01041283983 | G26: 0.1350114712 | H26: 0.1020083247 | I26: 0.2370197959 | J26: 9.480791835
B27: 2.5 | C27: 50.27429736 | E27: 3.541593474 | F27: 0.01051276861 | G27: 0.1422139026 | H27: 0.11434934 | I27: 0.2565632426 | J27: 10.2625297
B28: 2.75 | C28: 50.30990832 | E28: 3.536581542 | F28: 0.01061125728 | G28: 0.1490496225 | H28: 0.1268728133 | I28: 0.2759224358 | J28: 11.03689743
B29: 3 | C29: 50.34556257 | E29: 3.531574169 | F29: 0.01070830584 | G29: 0.1555670043 | H29: 0.1395736323 | I29: 0.2951406366 | J29: 11.80562546
B30: 3.25 | C30: 50.38126015 | E30: 3.526571356 | F30: 0.01080391428 | G30: 0.161804544 | H30: 0.1524466981 | I30: 0.3142512421 | J30: 12.57004969
B31: 3.5 | C31: 50.41700114 | E31: 3.521573103 | F31: 0.0108980826 | G31: 0.1677934764 | H31: 0.1654869256 | I31: 0.3332804019 | J31: 13.33121608
B32: 3.75 | C32: 50.45278559 | E32: 3.51657941 | F32: 0.01099081082 | G32: 0.1735595614 | H32: 0.1786892428 | I32: 0.3522488042 | J32: 14.08995217
B33: 4 | C33: 50.48861357 | E33: 3.511590276 | F33: 0.01108209892 | G33: 0.1791243429 | H33: 0.1920485915 | I33: 0.3711729343 | J33: 14.84691737
B34: 4.25 | C34: 50.52448513 | E34: 3.506605702 | F34: 0.0111719469 | G34: 0.184506057 | H34: 0.2055599267 | I34: 0.3900659838 | J34: 15.60263935
B35: 4.5 | C35: 50.56040035 | E35: 3.501625688 | F35: 0.01126035478 | G35: 0.1897203042 | H35: 0.2192182171 | I35: 0.4089385213 | J35: 16.35754085
B36: 4.75 | C36: 50.59635927 | E36: 3.496650233 | F36: 0.01134732254 | G36: 0.1947805539 | H36: 0.2330184446 | I36: 0.4277989985 | J36: 17.11195994
B37: 5 | C37: 50.63236197 | E37: 3.491679338 | F37: 0.01143285018 | G37: 0.1996985329 | H37: 0.2469556048 | I37: 0.4466541376 | J37: 17.8661655
B38: 5.25 | C38: 50.6684085 | E38: 3.486713002 | F38: 0.01151693771 | G38: 0.2044845254 | H38: 0.2610247064 | I38: 0.4655092318 | J38: 18.62036927
B39: 5.5 | C39: 50.70449892 | E39: 3.481751227 | F39: 0.01159958513 | G39: 0.2091476114 | H39: 0.2752207719 | I39: 0.4843683833 | J39: 19.37473533
B40: 5.75 | C40: 50.74063331 | E40: 3.476794011 | F40: 0.01168079244 | G40: 0.213695855 | H40: 0.289538837 | I40: 0.503234692 | J40: 20.12938768
B41: 6 | C41: 50.77681171 | E41: 3.471841354 | F41: 0.01176055963 | G41: 0.2181364579 | H41: 0.303973951 | I41: 0.5221104088 | J41: 20.88441635
B42: 6.25 | C42: 50.8130342 | E42: 3.466893258 | F42: 0.01183888671 | G42: 0.2224758831 | H42: 0.3185211763 | I42: 0.5409970594 | J42: 21.63988238
B43: 6.5 | C43: 50.84930083 | E43: 3.461949721 | F43: 0.01191577367 | G43: 0.2267199578 | H43: 0.333175589 | I43: 0.5598955467 | J43: 22.39582187
B44: 6.75 | C44: 50.88561167 | E44: 3.457010743 | F44: 0.01199122052 | G44: 0.2308739571 | H44: 0.3479322784 | I44: 0.5788062355 | J44: 23.15224942
B45: 7 | C45: =94.15/( SQRT($E45)*( (($C$4/$C$6)/(1-$C$5/$C$6)) + ((((2/(1-$C$5/$C$6))*LN((1/(1-$C$5/$C$6))+1))-(((1/(1-$C$5/$C$6))-1)*LN((1/((1-$C$5/$C$6)^2))-1)))/PI() ) ) ) -> 50.92196677 | E45: 3.452076326 | F45: 0.01206522726 | G45: 0.2349426756 | H45: 0.3627863474 | I45: 0.597729023 | J45: =I45*$C$3 -> 23.90916092
B46: 7.25 | C46: 50.95836621 | E46: 3.447146468 | F46: 0.01213779388 | G46: =(20*LOG(EXP(1))/2) * (SQRT(PI() * (4*PI()*10^-7) / 56900000) / ($C$4*0.001)) * SQRT($B46*10^9) * (1/$C46) -> 0.2389304864 | H46: 0.3777329122 | I46: 0.6166633986 | J46: 24.66653595
B47: 7.5 | C47: 50.99481004 | E47: 3.442221169 | F47: 0.01220892039 | G47: 0.2428413916 | H47: 0.3927671023 | I47: 0.6356084938 | J47: 25.42433975
B48: 7.75 | C48: 51.03129832 | E48: 3.437300431 | F48: 0.01227860679 | G48: 0.2466790647 | H48: 0.4078840606 | I48: 0.6545631253 | J48: 26.18252501
B49: 8 | C49: 51.06783112 | E49: 3.432384252 | F49: 0.01234685307 | G49: 0.2504468879 | H49: 0.4230789434 | I49: 0.6735258313 | J49: 26.94103325
B50: 8.25 | C50: 51.1044085 | E50: 3.427472632 | F50: 0.01241365924 | G50: 0.2541479832 | H50: 0.4383469204 | I50: 0.6924949036 | J50: 27.69979615
B51: 8.5 | C51: 51.14103053 | E51: 3.422565573 | F51: 0.01247902529 | G51: 0.2577852399 | H51: 0.4536831746 | I51: 0.7114684145 | J51: 28.45873658
B52: 8.75 | C52: 51.17769726 | E52: 3.417663073 | F52: 0.01254295123 | G52: 0.2613613382 | H52: 0.4690829023 | I52: 0.7304442405 | J52: 29.21776962
B53: 9 | C53: 51.21440875 | E53: 3.412765133 | F53: 0.01260543706 | G53: 0.2648787699 | H53: 0.4845413133 | I53: 0.7494200832 | J53: 29.97680333
B54: 9.25 | C54: 51.25116508 | E54: 3.407871752 | F54: 0.01266648278 | G54: 0.2683398566 | H54: 0.5000536306 | I54: 0.7683934871 | J54: 30.73573949
B55: 9.5 | C55: 51.2879663 | E55: 3.402982931 | F55: 0.01272608838 | G55: 0.2717467655 | H55: 0.5156150905 | I55: 0.787361856 | J55: 31.49447424
B56: 9.75 | C56: 51.32481247 | E56: 3.39809867 | F56: 0.01278425386 | G56: 0.2751015239 | H56: 0.5312209427 | I56: 0.8063224665 | J56: 32.25289866
B57: 10 | C57: 51.36170367 | E57: 3.393218968 | F57: 0.01284097924 | G57: 0.2784060308 | H57: 0.5468664502 | I57: 0.825272481 | J57: 33.01089924
B58: 10.25 | C58: 51.39863994 | E58: 3.388343826 | F58: 0.0128962645 | G58: 0.2816620688 | H58: 0.5625468893 | I58: 0.8442089581 | J58: 33.76835833
B59: 10.5 | C59: 51.43562136 | E59: 3.383473244 | F59: 0.01295010964 | G59: 0.2848713137 | H59: 0.5782575496 | I59: 0.8631288633 | J59: 34.52515453
B60: 10.75 | C60: 51.47264798 | E60: 3.378607222 | F60: 0.01300251468 | G60: 0.2880353431 | H60: 0.593993734 | I60: 0.8820290771 | J60: 35.28116308
B61: 11 | C61: 51.50971988 | E61: 3.373745759 | F61: 0.01305347959 | G61: 0.2911556445 | H61: 0.6097507587 | I61: 0.9009064032 | J61: 36.03625613
B62: 11.25 | C62: 51.5468371 | E62: 3.368888856 | F62: 0.0131030044 | G62: 0.2942336223 | H62: 0.6255239531 | I62: 0.9197575754 | J62: 36.79030302
B63: 11.5 | C63: 51.58399972 | E63: 3.364036512 | F63: 0.01315108909 | G63: 0.2972706044 | H63: 0.6413086599 | I63: 0.9385792643 | J63: 37.54317057
B64: 11.75 | C64: 51.6212078 | E64: 3.359188728 | F64: 0.01319773367 | G64: 0.3002678478 | H64: 0.6571002352 | I64: 0.9573680829 | J64: 38.29472332
B65: 12 | C65: 51.65846141 | E65: 3.354345504 | F65: 0.01324293813 | G65: 0.3032265436 | H65: 0.6728940481 | I65: 0.9761205917 | J65: 39.04482367
B66: 12.25 | C66: 51.69576059 | E66: 3.34950684 | F66: 0.01328670248 | G66: 0.3061478222 | H66: 0.6886854813 | I66: 0.9948333035 | J66: 39.79333214
B67: 12.5 | C67: 51.73310543 | E67: 3.344672735 | F67: 0.01332902672 | G67: 0.3090327574 | H67: 0.7044699304 | I67: 1.013502688 | J67: 40.54010751
B68: 12.75 | C68: 51.77049597 | E68: 3.33984319 | F68: 0.01336991085 | G68: 0.3118823703 | H68: 0.7202428043 | I68: 1.032125175 | J68: 41.28500699
B69: 13 | C69: 51.80793229 | E69: 3.335018204 | F69: 0.01340935486 | G69: 0.3146976328 | H69: 0.7359995255 | I69: 1.050697158 | J69: 42.02788633
B70: 13.25 | C70: 51.84541444 | E70: 3.330197778 | F70: 0.01344735875 | G70: 0.3174794711 | H70: 0.7517355291 | I70: 1.069215 | J70: 42.76860001
B71: 13.5 | C71: 51.8829425 | E71: 3.325381912 | F71: 0.01348392254 | G71: 0.3202287683 | H71: 0.767446264 | I71: 1.087675032 | J71: 43.50700129
B72: 13.75 | C72: 51.92051652 | E72: 3.320570606 | F72: 0.0135190462 | G72: 0.3229463677 | H72: 0.7831271919 | I72: 1.10607356 | J72: 44.24294238
B73: 14 | C73: 51.95813657 | E73: 3.315763859 | F73: 0.01355272976 | G73: 0.3256330749 | H73: 0.7987737879 | I73: 1.124406863 | J73: 44.97627451
B74: 14.25 | C74: 51.99580271 | E74: 3.310961672 | F74: 0.0135849732 | G74: 0.3282896602 | H74: 0.8143815402 | I74: 1.1426712 | J74: 45.70684802
B75: 14.5 | C75: 52.033515 | E75: 3.306164044 | F75: 0.01361577653 | G75: 0.3309168609 | H75: 0.8299459504 | I75: 1.160862811 | J75: 46.43451245
B76: 14.75 | C76: 52.07127351 | E76: 3.301370977 | F76: 0.01364513974 | G76: 0.3335153831 | H76: 0.8454625329 | I76: 1.178977916 | J76: 47.15911664
B77: 15 | C77: =94.15/( SQRT($E77)*( (($C$4/$C$6)/(1-$C$5/$C$6)) + ((((2/(1-$C$5/$C$6))*LN((1/(1-$C$5/$C$6))+1))-(((1/(1-$C$5/$C$6))-1)*LN((1/((1-$C$5/$C$6)^2))-1)))/PI() ) ) ) -> 52.10907831 | E77: 3.296582469 | F77: 0.01367306285 | G77: 0.3360859037 | H77: 0.8609268156 | I77: 1.197012719 | J77: =I77*$C$3 -> 47.88050877
B78: 15.25 | C78: 52.14692944 | E78: =$E$9*(B78*10^9)^2 + $E$10*(B78*10^9) + $E$11 -> 3.29179852 | F78: =$H$9*(B78*10^9)^2 + $H$10*(B78*10^9) + $H$11 -> 0.01369954583 | G78: =(20*LOG(EXP(1))/2) * (SQRT(PI() * (4*PI()*10^-7) / 56900000) / ($C$4*0.001)) * SQRT($B78*10^9) * (1/$C78) -> 0.3386290719 | H78: =( (20*LOG(EXP(1))/2) * 2*PI()*$B78*10^9 * $F78 *SQRT($E78) ) / (299792458*39.3700787 ) -> 0.8763343394 | I78: =G78+H78 -> 1.214963411 | J78: 48.59853645
B79: 15.5 | C79: 52.18482699 | E79: 3.287019131 | F79: 0.01372458871 | G79: 0.3411455107 | H79: 0.8916806585 | I79: 1.232826169 | J79: 49.31304677
B80: 15.75 | C80: 52.22277101 | E80: 3.282244302 | F80: 0.01374819147 | G80: 0.3436358189 | H80: 0.90696134 | I80: 1.250597159 | J80: 50.02388636
B81: 16 | C81: 52.26076156 | E81: 3.277474033 | F81: 0.01377035411 | G81: 0.3461005717 | H81: 0.9221719644 | I81: 1.268272536 | J81: 50.73090144
B82: 16.25 | C82: 52.29879871 | E82: 3.272708323 | F82: 0.01379107665 | G82: 0.3485403225 | H82: 0.9373081252 | I82: 1.285848448 | J82: 51.43393791
B83: 16.5 | C83: 52.33688253 | E83: 3.267947173 | F83: 0.01381035907 | G83: 0.3509556039 | H83: 0.952365429 | I83: 1.303321033 | J83: 52.13284132
B84: 16.75 | C84: 52.37501307 | E84: 3.263190583 | F84: 0.01382820137 | G84: 0.3533469287 | H84: 0.9673394956 | I84: 1.320686424 | J84: 52.82745697
B85: 17 | C85: 52.41319041 | E85: 3.258438552 | F85: 0.01384460356 | G85: 0.355714791 | H85: 0.9822259579 | I85: 1.337940749 | J85: 53.51762995
B86: 17.25 | C86: 52.4514146 | E86: 3.253691081 | F86: 0.01385956564 | G86: 0.3580596672 | H86: 0.9970204618 | I86: 1.355080129 | J86: 54.20320516
B87: 17.5 | C87: 52.4896857 | E87: 3.24894817 | F87: 0.01387308761 | G87: 0.3603820169 | H87: 1.011718666 | I87: 1.372100683 | J87: 54.88402733
B88: 17.75 | C88: 52.52800379 | E88: 3.244209818 | F88: 0.01388516946 | G88: 0.3626822835 | H88: 1.026316244 | I88: 1.388998527 | J88: 55.5599411
B89: 18 | C89: 52.56636893 | E89: 3.239476026 | F89: 0.0138958112 | G89: 0.3649608953 | H89: 1.04080888 | I89: 1.405769775 | J89: 56.230791
B90: 18.25 | C90: 52.60478117 | E90: 3.234746794 | F90: 0.01390501282 | G90: 0.367218266 | H90: 1.055192272 | I90: 1.422410538 | J90: 56.89642151
B91: 18.5 | C91: 52.64324059 | E91: 3.230022121 | F91: 0.01391277433 | G91: 0.3694547956 | H91: 1.069462132 | I91: 1.438916927 | J91: 57.55667709
B92: 18.75 | C92: 52.68174725 | E92: 3.225302008 | F92: 0.01391909573 | G92: 0.3716708707 | H92: 1.083614184 | I92: 1.455285055 | J92: 58.21140219
B93: 19 | C93: 52.72030121 | E93: 3.220586455 | F93: 0.01392397701 | G93: 0.3738668657 | H93: 1.097644166 | I93: 1.471511032 | J93: 58.86044126
B94: 19.25 | C94: 52.75890253 | E94: 3.215875461 | F94: 0.01392741818 | G94: 0.3760431426 | H94: 1.111547828 | I94: 1.487590971 | J94: 59.50363882
B95: 19.5 | C95: 52.79755129 | E95: 3.211169027 | F95: 0.01392941924 | G95: 0.3782000522 | H95: 1.125320934 | I95: 1.503520986 | J95: 60.14083944
B96: 19.75 | C96: 52.83624754 | E96: 3.206467153 | F96: 0.01392998018 | G96: 0.3803379342 | H96: 1.13895926 | I96: 1.519297194 | J96: 60.77188778
B97: 20 | C97: 52.87499135 | E97: 3.201769839 | F97: 0.01392910101 | G97: 0.3824571179 | H97: =( (20*LOG(EXP(1))/2) * 2*PI()*$B97*10^9 * $F97 *SQRT($E97) ) / (299792458*39.3700787 ) -> 1.152458597 | I97: 1.534915714 | J97: 61.39662858
B98: 20.25 | C98: 52.91378278 | E98: 3.197077084 | F98: 0.01392678172 | G98: 0.3845579227 | H98: 1.165814745 | I98: 1.550372668 | J98: 62.01490672
B99: 20.5 | C99: 52.9526219 | E99: 3.192388888 | F99: 0.01392302233 | G99: 0.3866406581 | H99: 1.179023522 | I99: 1.56566418 | J99: 62.62656722
B100: 20.75 | C100: 52.99150876 | E100: 3.187705253 | F100: 0.01391782281 | G100: 0.3887056248 | H100: 1.192080756 | I100: 1.580786381 | J100: 63.23145523
B101: 21 | C101: 53.03044345 | E101: 3.183026177 | F101: 0.01391118319 | G101: 0.3907531143 | H101: 1.204982288 | I101: 1.595735402 | J101: 63.82941609
B102: 21.25 | C102: 53.06942601 | E102: 3.178351661 | F102: 0.01390310345 | G102: 0.39278341 | H102: 1.217723973 | I102: 1.610507383 | J102: 64.42029532
B103: 21.5 | C103: 53.10845652 | E103: 3.173681704 | F103: 0.0138935836 | G103: 0.3947967871 | H103: 1.230301678 | I103: 1.625098465 | J103: 65.0039386
B104: 21.75 | C104: 53.14753503 | E104: 3.169016307 | F104: 0.01388262363 | G104: 0.3967935128 | H104: 1.242711284 | I104: 1.639504797 | J104: 65.58019187
B105: 22 | C105: 53.18666162 | E105: 3.16435547 | F105: 0.01387022355 | G105: 0.3987738471 | H105: 1.254948684 | I105: 1.653722531 | J105: 66.14890125
B106: 22.25 | C106: 53.22583634 | E106: 3.159699193 | F106: 0.01385638336 | G106: 0.4007380429 | H106: 1.267009785 | I106: 1.667747828 | J106: 66.70991311
B107: 22.5 | C107: 53.26505927 | E107: 3.155047475 | F107: 0.01384110305 | G107: 0.4026863458 | H107: 1.278890506 | I107: 1.681576851 | J107: 67.26307406
B108: 22.75 | C108: 53.30433046 | E108: 3.150400317 | F108: 0.01382438263 | G108: 0.4046189952 | H108: 1.290586778 | I108: 1.695205774 | J108: 67.80823095
B109: 23 | C109: =94.15/( SQRT($E109)*( (($C$4/$C$6)/(1-$C$5/$C$6)) + ((((2/(1-$C$5/$C$6))*LN((1/(1-$C$5/$C$6))+1))-(((1/(1-$C$5/$C$6))-1)*LN((1/((1-$C$5/$C$6)^2))-1)))/PI() ) ) ) -> 53.34364998 | E109: 3.145757718 | F109: 0.01380622209 | G109: 0.406536224 | H109: 1.302094548 | I109: 1.708630772 | J109: =I109*$C$3 -> 68.34523089
B110: 23.25 | C110: 53.38301789 | E110: 3.141119679 | F110: 0.01378662145 | G110: =(20*LOG(EXP(1))/2) * (SQRT(PI() * (4*PI()*10^-7) / 56900000) / ($C$4*0.001)) * SQRT($B110*10^9) * (1/$C110) -> 0.4084382587 | H110: 1.313409774 | I110: 1.721848032 | J110: 68.87392129
B111: 23.5 | C111: 53.42243427 | E111: 3.1364862 | F111: 0.01376558068 | G111: 0.4103253204 | H111: 1.324528425 | I111: 1.734853745 | J111: 69.39414981
B112: 23.75 | C112: 53.46189916 | E112: 3.131857281 | F112: 0.01374309981 | G112: 0.412197624 | H112: 1.335446486 | I112: 1.74764411 | J112: 69.90576441
B113: 24 | C113: 53.50141264 | E113: 3.127232921 | F113: 0.01371917882 | G113: 0.4140553792 | H113: 1.346159954 | I113: 1.760215334 | J113: 70.40861334
B114: 24.25 | C114: 53.54097478 | E114: 3.122613121 | F114: 0.01369381772 | G114: 0.4158987903 | H114: 1.356664839 | I114: 1.772563629 | J114: 70.90254516
B115: 24.5 | C115: 53.58058563 | E115: 3.11799788 | F115: 0.0136670165 | G115: 0.4177280566 | H115: 1.366957162 | I115: 1.784685218 | J115: 71.38740874
B116: 24.75 | C116: 53.62024526 | E116: 3.113387199 | F116: 0.01363877517 | G116: 0.4195433725 | H116: 1.377032959 | I116: 1.796576331 | J116: 71.86305326
B117: 25 | C117: 53.65995374 | E117: 3.108781078 | F117: 0.01360909373 | G117: 0.4213449275 | H117: 1.386888278 | I117: 1.808233206 | J117: 72.32932822
B118: 25.25 | C118: 53.69971113 | E118: 3.104179517 | F118: 0.01357797217 | G118: 0.4231329066 | H118: 1.39651918 | I118: 1.819652087 | J118: 72.78608348
B119: 25.5 | C119: 53.73951749 | E119: 3.099582515 | F119: 0.0135454105 | G119: 0.4249074903 | H119: 1.40592174 | I119: 1.83082923 | J119: 73.2331692
B120: 25.75 | C120: 53.77937289 | E120: 3.094990073 | F120: 0.01351140872 | G120: 0.4266688551 | H120: 1.415092042 | I120: 1.841760898 | J120: 73.6704359
B121: 26 | C121: 53.81927739 | E121: 3.090402191 | F121: 0.01347596682 | G121: 0.428417173 | H121: 1.424026188 | I121: 1.852443361 | J121: 74.09773445
B122: 26.25 | C122: 53.85923106 | E122: 3.085818868 | F122: 0.01343908481 | G122: 0.4301526121 | H122: 1.432720289 | I122: 1.862872901 | J122: 74.51491605
B123: 26.5 | C123: 53.89923397 | E123: 3.081240105 | F123: 0.01340076268 | G123: 0.4318753369 | H123: 1.44117047 | I123: 1.873045807 | J123: 74.92183229
B124: 26.75 | C124: 53.93928617 | E124: 3.076665901 | F124: 0.01336100044 | G124: 0.4335855078 | H124: 1.44937287 | I124: 1.882958378 | J124: 75.3183351
B125: 27 | C125: 53.97938774 | E125: 3.072096258 | F125: 0.01331979809 | G125: 0.4352832819 | H125: 1.457323638 | I125: 1.892606919 | J125: 75.70427678
B126: 27.25 | C126: 54.01953873 | E126: 3.067531174 | F126: 0.01327715562 | G126: 0.4369688124 | H126: 1.465018937 | I126: 1.90198775 | J126: 76.07950999
B127: 27.5 | C127: 54.05973921 | E127: 3.062970649 | F127: 0.01323307304 | G127: 0.4386422495 | H127: 1.472454945 | I127: 1.911097195 | J127: 76.44388779
B128: 27.75 | C128: 54.09998924 | E128: 3.058414685 | F128: 0.01318755035 | G128: 0.44030374 | H128: 1.47962785 | I128: 1.91993159 | J128: 76.7972636
B129: 28 | C129: 54.1402889 | E129: 3.05386328 | F129: 0.01314058754 | G129: 0.4419534274 | H129: 1.486533853 | I129: 1.928487281 | J129: 77.13949123
B130: 28.25 | C130: 54.18063824 | E130: 3.049316434 | F130: 0.01309218462 | G130: 0.4435914522 | H130: 1.493169169 | I130: 1.936760622 | J130: 77.47042487
B131: 28.5 | C131: 54.22103734 | E131: 3.044774149 | F131: 0.01304234159 | G131: 0.4452179518 | H131: 1.499530025 | I131: 1.944747977 | J131: 77.78991909
B132: 28.75 | C132: 54.26148624 | E132: 3.040236423 | F132: 0.01299105844 | G132: 0.446833061 | H132: 1.505612661 | I132: 1.952445722 | J132: 78.09782888
B133: 29 | C133: 54.30198502 | E133: 3.035703256 | F133: 0.01293833518 | G133: 0.4484369115 | H133: 1.511413328 | I133: 1.95985024 | J133: 78.39400959
B134: 29.25 | C134: 54.34253375 | E134: 3.03117465 | F134: 0.01288417181 | G134: 0.4500296323 | H134: 1.516928293 | I134: 1.966957925 | J134: 78.67831701
B135: 29.5 | C135: 54.38313249 | E135: 3.026650603 | F135: 0.01282856832 | G135: 0.4516113498 | H135: 1.522153832 | I135: 1.973765182 | J135: 78.95060729
B136: 29.75 | C136: 54.4237813 | E136: 3.022131115 | F136: 0.01277152471 | G136: 0.4531821879 | H136: 1.527086237 | I136: 1.980268425 | J136: 79.21073701
B137: 30 | C137: 54.46448024 | E137: 3.017616188 | F137: 0.012713041 | G137: 0.4547422679 | H137: 1.531721811 | I137: 1.986464079 | J137: 79.45856315

Sheet KR Spec
A1: b1 | B1: 2e-05 | C1: b2 | D1: 1.1e-10 | E1: b3 | F1: 3.2e-20 | G1: b4 | H1: -1.2e-30
A2: F1 | B2: 1000000000 | C2: F2 | D2: 6000000000 | E2: Fa | F2: 100000000 | G2: Fb | H2: 5156250000 | I2: fmin | J2: 50000000 | K2: fmax | L2: 15000000000
A3: KR MAXIMUM INSERTION LOSS
A4: Freq | B4: Freq (GHz) | C4: Fitted Attenuation | D4: Insertion Loss
A5: 10000000 | B5: =A5*0.000000001 -> 0.01 | C5: =20 * LOG(EXP(1)) * ($B$1*SQRT(A5) + $D$1*A5 + $F$1*(A5^2) + $H$1*(A5^3)) -> 0.5589261582 | D5: =IF(A5<$J$2,,IF(A5<$D$2,C5+0.8+0.0000000002*A5,IF(A5<$L$2,C5+0.8+0.0000000002*$D$2+0.00000001*(A5-$D$2),))) -> 0
A6: 50000000 | B6: =A6*0.000000001 -> 0.05 | C6: 1.276836254 | D6: 2.086836254
A7: 100000000 | B7: 0.1 | C7: 1.835491775 | D7: 2.655491775
A8: 150000000 | B8: 0.15 | C8: 2.277135599 | D8: 3.107135599
A9: 200000000 | B9: 0.2 | C9: 2.658864712 | D9: 3.498864712
A10: 250000000 | B10: 0.25 | C10: 3.00279036 | D10: 3.85279036
A11: 500000000 | B11: 0.5 | C11: 4.430356099 | D11: 5.330356099
A12: 750000000 | B12: 0.75 | C12: 5.625992364 | D12: 6.575992364
A13: 1000000000 | B13: 1 | C13: 6.716412213 | D13: 7.716412213
A14: 1250000000 | B14: 1.25 | C14: 7.750098217 | D14: 8.800098217
A15: 1500000000 | B15: 1.5 | C15: 8.751439174 | D15: 9.851439174
A16: 1750000000 | B16: 1.75 | C16: 9.734526467 | D16: 10.88452647
A17: 2000000000 | B17: 2 | C17: 10.70820092 | D17: 11.90820092
A18: 2250000000 | B18: 2.25 | C18: 11.67830498 | D18: 12.92830498
A19: 2500000000 | B19: 2.5 | C19: 12.64882679 | D19: 13.94882679
A20: 2750000000 | B20: 2.75 | C20: 13.62253758 | D20: 14.97253758
A21: 3000000000 | B21: 3 | C21: 14.60137235 | D21: 16.00137235
A22: 3250000000 | B22: 3.25 | C22: 15.58666979 | D22: 17.03666979
A23: 3500000000 | B23: 3.5 | C23: 16.57933044 | D23: 18.07933044
A24: 3750000000 | B24: 3.75 | C24: 17.57992465 | D24: 19.12992465
A25: 4000000000 | B25: 4 | C25: 18.58876852 | D25: 20.18876852
A26: 4250000000 | B26: 4.25 | C26: 19.60597884 | D26: 21.25597884
A27: 4500000000 | B27: 4.5 | C27: 20.63151363 | D27: 22.33151363
A28: 4750000000 | B28: 4.75 | C28: 21.66520258 | D28: 23.41520258
A29: 5000000000 | B29: 5 | C29: 22.70677049 | D29: 24.50677049
A30: 5250000000 | B30: 5.25 | C30: 23.75585539 | D30: 25.60585539
A31: 5500000000 | B31: 5.5 | C31: 24.81202285 | D31: 26.71202285
A32: 5750000000 | B32: 5.75 | C32: 25.87477742 | D32: 27.82477742
A33: 6000000000 | B33: 6 | C33: 26.9435718 | D33: 28.9435718
A34: 6250000000 | B34: 6.25 | C34: 28.01781432 | D34: 32.51781432
A35: 6500000000 | B35: 6.5 | C35: 29.09687516 | D35: 36.09687516
A36: 6750000000 | B36: 6.75 | C36: 30.18009135 | D36: 39.68009135
A37: 7000000000 | B37: 7 | C37: =20 * LOG(EXP(1)) * ($B$1*SQRT(A37) + $D$1*A37 + $F$1*(A37^2) + $H$1*(A37^3)) -> 31.26677111 | D37: =IF(A37<$J$2,,IF(A37<$D$2,C37+0.8+0.0000000002*A37,IF(A37<$L$2,C37+0.8+0.0000000002*$D$2+0.00000001*(A37-$D$2),))) -> 43.26677111
A38: 7250000000 | B38: 7.25 | C38: 32.35619737 | D38: 46.85619737
A39: 7500000000 | B39: 7.5 | C39: 33.44763083 | D39: 50.44763083
A40: 7750000000 | B40: 7.75 | C40: 34.54031252 | D40: 54.04031252
A41: 8000000000 | B41: 8 | C41: 35.63346601 | D41: 57.63346601
A42: 8250000000 | B42: 8.25 | C42: 36.72629928 | D42: 61.22629928
A43: 8500000000 | B43: 8.5 | C43: 37.81800642 | D43: 64.81800642
A44: 8750000000 | B44: 8.75 | C44: 38.90776899 | D44: 68.40776899
A45: 9000000000 | B45: 9 | C45: 39.99475728 | D45: 71.99475728
A46: 9250000000 | B46: 9.25 | C46: 41.07813145 | D46: 75.57813145
A47: 9500000000 | B47: 9.5 | C47: 42.15704239 | D47: 79.15704239
A48: 9750000000 | B48: 9.75 | C48: 43.23063266 | D48: 82.73063266
A49: 10000000000 | B49: 10 | C49: 44.29803715 | D49: 86.29803715
A50: 10250000000 | B50: 10.25 | C50: 45.35838384 | D50: 89.85838384
A51: 10500000000 | B51: 10.5 | C51: 46.41079428 | D51: 93.41079428
A52: 10750000000 | B52: 10.75 | C52: 47.45438422 | D52: 96.95438422
A53: 11000000000 | B53: 11 | C53: 48.48826402 | D53: 100.488264
A54: 11250000000 | B54: 11.25 | C54: 49.5115391 | D54: 104.0115391
A55: 11500000000 | B55: 11.5 | C55: 50.52331031 | D55: 107.5233103
A56: 11750000000 | B56: 11.75 | C56: 51.52267429 | D56: 111.0226743
A57: 12000000000 | B57: 12 | C57: 52.50872377 | D57: 114.5087238
A58: 12250000000 | B58: 12.25 | C58: 53.48054785 | D58: 117.9805478
A59: 12500000000 | B59: 12.5 | C59: 54.43723228 | D59: 121.4372323
A60: 12750000000 | B60: 12.75 | C60: 55.37785967 | D60: 124.8778597
A61: 13000000000 | B61: 13 | C61: 56.30150972 | D61: 128.3015097
A62: 13250000000 | B62: 13.25 | C62: 57.20725941 | D62: 131.7072594
A63: 13500000000 | B63: 13.5 | C63: 58.09418317 | D63: 135.0941832
A64: 13750000000 | B64: 13.75 | C64: 58.96135305 | D64: 138.4613531
A65: 14000000000 | B65: 14 | C65: 59.80783889 | D65: 141.8078389
A66: 14250000000 | B66: 14.25 | C66: 60.63270842 | D66: 145.1327084
A67: 14500000000 | B67: 14.5 | C67: 61.43502742 | D67: 148.4350274
A68: 14750000000 | B68: 14.75 | C68: 62.21385982 | D68: 151.7138598
A69: 15000000000 | B69: 15 | C69: =20 * LOG(EXP(1)) * ($B$1*SQRT(A69) + $D$1*A69 + $F$1*(A69^2) + $H$1*(A69^3)) -> 62.96826784 | D69: =IF(A69<$J$2,,IF(A69<$D$2,C69+0.8+0.0000000002*A69,IF(A69<$L$2,C69+0.8+0.0000000002*$D$2+0.00000001*(A69-$D$2),))) -> 0
A70: 15250000000 | B70: =A70*0.000000001 -> 15.25 | C70: 63.69731203 | D70: 0
A71: 15500000000 | B71: 15.5 | C71: 64.40005142 | D71: 0
A72: 15750000000 | B72: 15.75 | C72: 65.07554359 | D72: 0
A73: 16000000000 | B73: 16 | C73: 65.72284474 | D73: 0
A74: 16250000000 | B74: 16.25 | C74: 66.34100976 | D74: 0
A75: 16500000000 | B75: 16.5 | C75: 66.92909234 | D75: 0
A76: 16750000000 | B76: 16.75 | C76: 67.48614498 | D76: 0
A77: 17000000000 | B77: 17 | C77: 68.01121909 | D77: 0
A78: 17250000000 | B78: 17.25 | C78: 68.50336503 | D78: 0
A79: 17500000000 | B79: 17.5 | C79: 68.96163217 | D79: 0
A80: 17750000000 | B80: 17.75 | C80: 69.38506892 | D80: 0
A81: 18000000000 | B81: 18 | C81: 69.77272282 | D81: 0
A82: 18250000000 | B82: 18.25 | C82: 70.12364053 | D82: 0
A83: 18500000000 | B83: 18.5 | C83: 70.4368679 | D83: 0
A84: 18750000000 | B84: 18.75 | C84: 70.71145003 | D84: 0
A85: 19000000000 | B85: 19 | C85: 70.94643125 | D85: 0
A86: 19250000000 | B86: 19.25 | C86: 71.14085521 | D86: 0
A87: 19500000000 | B87: 19.5 | C87: 71.29376485 | D87: 0
A88: 19750000000 | B88: 19.75 | C88: 71.40420252 | D88: 0
A89: 20000000000 | B89: 20 | C89: 71.4712099 | D89: 0
A90: 20250000000 | B90: 20.25 | C90: 71.49382813 | D90: 0
A91: 20500000000 | B91: 20.5 | C91: 71.47109775 | D91: 0
A92: 20750000000 | B92: 20.75 | C92: 71.40205878 | D92: 0
A93: 21000000000 | B93: 21 | C93: 71.28575073 | D93: 0
A94: 21250000000 | B94: 21.25 | C94: 71.12121261 | D94: 0
A95: 21500000000 | B95: 21.5 | C95: 70.90748294 | D95: 0
A96: 21750000000 | B96: 21.75 | C96: 70.6435998 | D96: 0
A97: 22000000000 | B97: 22 | C97: 70.32860084 | D97: 0
A98: 22250000000 | B98: 22.25 | C98: 69.96152327 | D98: 0
A99: 22500000000 | B99: 22.5 | C99: 69.54140391 | D99: 0
A100: 22750000000 | B100: 22.75 | C100: 69.06727921 | D100: 0
A101: 23000000000 | B101: 23 | C101: =20 * LOG(EXP(1)) * ($B$1*SQRT(A101) + $D$1*A101 + $F$1*(A101^2) + $H$1*(A101^3)) -> 68.5381852 | D101: =IF(A101<$J$2,,IF(A101<$D$2,C101+0.8+0.0000000002*A101,IF(A101<$L$2,C101+0.8+0.0000000002*$D$2+0.00000001*(A101-$D$2),))) -> 0
A102: 23250000000 | B102: 23.25 | C102: 67.95315761 | D102: 0
A103: 23500000000 | B103: 23.5 | C103: 67.31123177 | D103: 0
A104: 23750000000 | B104: 23.75 | C104: 66.61144272 | D104: 0
A105: 24000000000 | B105: 24 | C105: 65.85282516 | D105: 0
A106: 24250000000 | B106: 24.25 | C106: 65.03441348 | D106: 0
A107: 24500000000 | B107: 24.5 | C107: 64.15524178 | D107: 0
A108: 24750000000 | B108: 24.75 | C108: 63.21434388 | D108: 0
A109: 25000000000 | B109: 25 | C109: 62.21075331 | D109: 0
A110: 25250000000 | B110: 25.25 | C110: 61.14350334 | D110: 0
A111: 25500000000 | B111: 25.5 | C111: 60.01162698 | D111: 0
A112: 25750000000 | B112: 25.75 | C112: 58.81415699 | D112: 0
A113: 26000000000 | B113: 26 | C113: 57.5501259 | D113: 0
A114: 26250000000 | B114: 26.25 | C114: 56.21856598 | D114: 0
A115: 26500000000 | B115: 26.5 | C115: 54.81850932 | D115: 0
A116: 26750000000 | B116: 26.75 | C116: 53.34898776 | D116: 0
A117: 27000000000 | B117: 27 | C117: 51.80903293 | D117: 0
A118: 27250000000 | B118: 27.25 | C118: 50.19767627 | D118: 0
A119: 27500000000 | B119: 27.5 | C119: 48.51394902 | D119: 0
A120: 27750000000 | B120: 27.75 | C120: 46.75688222 | D120: 0
A121: 28000000000 | B121: 28 | C121: 44.92550674 | D121: 0
A122: 28250000000 | B122: 28.25 | C122: 43.01885327 | D122: 0
A123: 28500000000 | B123: 28.5 | C123: 41.03595231 | D123: 0
A124: 28750000000 | B124: 28.75 | C124: 38.97583421 | D124: 0
A125: 29000000000 | B125: 29 | C125: 36.83752914 | D125: 0
A126: 29250000000 | B126: 29.25 | C126: 34.62006714 | D126: 0
A127: 29500000000 | B127: 29.5 | C127: 32.32247806 | D127: 0
A128: 29750000000 | B128: 29.75 | C128: 29.94379163 | D128: 0
A129: 30000000000 | B129: 30 | C129: 27.48303743 | D129: 0
